Cogmind - Beta 10.1 @@@ ROGUE MODE // 2020.09.23 @ 08:49:18 Player: BuggedPlusIntoW5 Result: Destroyed Tau Ceti IV! Performance ------------- Evolutions (9) 4500 Regions Visited (34) 6800 Robots Destroyed (137) 685 Value Destroyed (8055) 8055 Prototype IDs (119) 2380 Alien Tech Used (15) 3000 Bonus (36999) 36999 TOTAL SCORE: 62419 Bonus ------- Triggered High Security 500 High Alert Combat Kills 3064 Follower Combat Kills 6881 Network Hubs Disabled 200 Aligned with FarCom 300 Met Data Miner 300 Met Imprinter 300 Was Imprinted 300 Built Enhanced Grunts 300 Met R17 at Cetus 500 Found Hidden Lab 3000 Used Core Reset Matrix 3000 Destroyed MAIN.C Guards 500 Met MAIN.C 5000 Destroyed MAIN.C Shell 5000 Met Architect 300 Started Test 138-B 500 Started Test 138-C 8000 Destroyed A8 300 Destroyed A6 400 Destroyed A5 500 Destroyed A4 700 Destroyed A3 800 Destroyed A2 1000 Win 3000 Friendly Fire -7646 Cogmind --------- Core Integrity 990/1600 Matter 425/425 Energy 950/950 System Corruption 1% Temperature Cool (0) Movement Hovering (40) Location Subspace Parts ------- > --- POWER (2) -------- Vortex Chain Reactor > --- PROPULSION (6) --- Combat Linear Gravjet Combat Linear Gravjet Combat Linear Gravjet Combat Linear Gravjet Combat Linear Gravjet Combat Linear Gravjet > --- UTILITY (15) ----- Lightpack 2.0 Experimental Melee Analysis Suite Experimental Target Analyzer Advanced Armor Integrity Analyzer Experimental Weapon Cycler Femtoactuators Advanced Force Booster Experimental Phase Shifter Centrium Linked Plating Centrium Linked Plating Centrium Linked Plating Zionite Shade Armor Experimental Shield Generator Stasis Generator > --- WEAPON (2) ------- Modified Quantum Sheargun A3's Sniper Rifle > --- INVENTORY (24) --- Vortex Chain Reactor Cooled Antigrav System Combat Linear Gravjet Experimental Energy Well (1000) Dimensional Manipulator Experimental Phase Shifter Zionite Weapon Casing Zionite Weapon Casing Zionite Shade Armor Experimental Shield Generator Transdimensional Reconstructor High-powered Transdimensional Reconstructor Integrity Redistributor Matter Drive Warp Cannon Hypervelocity Multirail Hypervelocity Multirail Sigix Terminator Sigix Broadsword Peak State ------------ > --- POWER ------------ Vortex Chain Reactor > --- PROPULSION ------- Combat Linear Gravjet Combat Linear Gravjet Combat Linear Gravjet Combat Linear Gravjet Combat Linear Gravjet Combat Linear Gravjet > --- UTILITY ---------- Lightpack 2.0 Experimental Melee Analysis Suite Experimental Target Analyzer Advanced Armor Integrity Analyzer Experimental Weapon Cycler Femtoactuators Advanced Force Booster Experimental Phase Shifter Centrium Linked Plating Centrium Linked Plating Centrium Linked Plating Zionite Shade Armor Experimental Shield Generator Stasis Generator > --- WEAPON ----------- Sigix Broadsword > --- INVENTORY -------- Vortex Chain Reactor Cooled Antigrav System Combat Linear Gravjet Experimental Energy Well Inertial Stasis Machine Experimental Phase Shifter Zionite Weapon Casing Zionite Weapon Casing Zionite Shade Armor Experimental Shield Generator Transdimensional Reconstructor High-powered Transdimensional Reconstructor Integrity Redistributor Matter Drive Modified Quantum Sheargun Warp Cannon Hypervelocity Multirail Hypervelocity Multirail Sigix Terminator [Rating: 275] Favorites ----------- Power Antimatter Reactor Engine Ion Engine Power Core Micro Fission Core Reactor Antimatter Reactor Propulsion Combat Linear Gravjet Treads Light Treads Hover Unit Combat Linear Gravjet Flight Unit Improved VTOL Module Utility Lightpack 2.0 Device Experimental Sensor Array Storage Lightpack 2.0 Processor Advanced Signal Interpreter Hackware Quantum Router Protection Improved Utility Shielding Artifact Matter Drive Weapon CR-A16's Behemoth Slayer Energy Gun Modified Quantum Sheargun Energy Cannon Improved EM Pulse Cannon Ballistic Gun Light Assault Rifle Ballistic Cannon Linear Accelerator Launcher Grenade Launcher Special Weapon Improved Remote Datajack Impact Weapon Power Maul Slashing Weapon Sigix Broadsword Piercing Weapon CR-A16's Behemoth Slayer Special Melee Weapon Improved Datajack Build | -11 -10 -10 -10 -9 -8 -7 -7 -7 -7 -7 -7 -6 -6 -6 -6 -6 -5 -5 -5 -5 -5 -5 -5 -5 -4 -4 -4 -3 -2 -2 -2 -1 -1 -1 ------- Run | Scr Mat Min Exi Min Mat Fac Was Fac Low Low Zio Pro Fac Low Low Dat Pro Fac Was Fac Ext Cet Arc Hub Fac Arm Lab Res Res Qua Sec Acc Com Ac0 Slots Evolved 18 | . . . . . 4 2 . . . . . . 2 . . . . 2 . . . . . . 2 . . 2 2 . . 2 . . Power 1 | . . . . . . . . . . . . . . . . . . 1 . . . . . . . . . . . . . . . . Propulsion 4 | . . . . . 2 2 . . . . . . . . . . . . . . . . . . . . . . . . . . . . Utility 13 | . . . . . 2 . . . . . . . 2 . . . . 1 . . . . . . 2 . . 2 2 . . 2 . . Weapon . | . . . . . . . . . . . . . . . . . . . . . . . . . . . . . . . . . . . Parts Attached 301 | 7 1 . 3 . 15 13 2 1 . . 1 6 6 . 1 7 2 8 . 1 2 4 2 8 12 31 4 11 5 20 10 7 42 69 Power 17 | 1 . . 1 . 1 1 2 . . . . . . . . . . 1 . . . . . . 1 5 . . . . . 1 2 1 Engine 4 | 1 . . 1 . 1 . . . . . . . . . . . . . . . . . . . . . . . . . . 1 . . Core 6 | . . . . . . 1 1 . . . . . . . . . . . . . . . . . . 4 . . . . . . . . Reactor 7 | . . . . . . . 1 . . . . . . . . . . 1 . . . . . . 1 1 . . . . . . 2 1 Propulsion 40 | 2 . . . . 4 3 . . . . . . . . . . . 2 . . . . . . 2 13 . 1 . 2 1 1 3 6 Treads 4 | 2 . . . . 2 . . . . . . . . . . . . . . . . . . . . . . . . . . . . . Leg . | . . . . . . . . . . . . . . . . . . . . . . . . . . . . . . . . . . . Wheel . | . . . . . . . . . . . . . . . . . . . . . . . . . . . . . . . . . . . Hover 27 | . . . . . . . . . . . . . . . . . . . . . . . . . . 13 . 1 . 2 1 1 3 6 Flight 9 | . . . . . 2 3 . . . . . . . . . . . 2 . . . . . . 2 . . . . . . . . . Utility 129 | 2 1 . 2 . 2 5 . . . . 1 3 3 . 1 4 1 5 . . . 3 . 2 5 3 2 9 3 14 7 5 23 23 Device 66 | 1 1 . . . . 2 . . . . . 2 2 . . 1 1 2 . . . 1 . 1 2 . . 8 2 9 7 3 11 10 Storage 16 | . . . 2 . 2 1 . . . . 1 . . . . . . . . . . . . . 2 1 1 1 . 1 . 1 2 1 Processor 10 | 1 . . . . . 1 . . . . . . 1 . . 1 . . . . . . . . . . . . . . . . 2 4 Hackware 3 | . . . . . . . . . . . . . . . . . . 2 . . . . . . . 1 . . . . . . . . Protection 30 | . . . . . . 1 . . . . . 1 . . 1 2 . 1 . . . 2 . 1 1 1 1 . 1 2 . 1 7 7 Artifact 4 | . . . . . . . . . . . . . . . . . . . . . . . . . . . . . . 2 . . 1 1 Weapon 115 | 2 . . . . 8 4 . 1 . . . 3 3 . . 3 1 . . 1 2 1 2 6 4 10 2 1 2 4 2 . 14 39 Energy Gun 7 | . . . . . 1 . . . . . . . . . . . . . . . . . . . . . 1 . . 1 . . 1 3 Energy Cannon 17 | . . . . . . 1 . . . . . . . . . . . . . . 1 1 1 3 . 2 1 1 2 . 1 . 1 2 Ballistic Gun 23 | 2 . . . . 3 . . . . . . . . . . . . . . . . . . . . . . . . . . . 1 17 Ballistic Cannon 2 | . . . . . . . . . . . . . . . . . . . . . . . . . . 1 . . . . . . 1 . Launcher 13 | . . . . . 2 . . . . . . . 2 . . 3 . . . . . . . . 2 3 . . . . . . 1 . Special Weapon 6 | . . . . . 2 . . . . . . . . . . . . . . . . . . . 1 1 . . . . . . 2 . Impact Weapon 2 | . . . . . . . . 1 . . . 1 . . . . . . . . . . . . . . . . . . . . . . Slashing Weapon 27 | . . . . . . 2 . . . . . . . . . . . . . . . . . . . . . . . 2 1 . 5 17 Piercing Weapon 8 | . . . . . . . . . . . . 1 . . . . 1 . . . . . . . . 3 . . . 1 . . 2 . Special Melee Weapon 10 | . . . . . . 1 . . . . . 1 1 . . . . . . 1 1 . 1 3 1 . . . . . . . . . Unidentified Prototypes 37 | . . . . . 1 . . . . . . . 1 . . 1 . 1 . . . . . 1 . . 4 . 2 . . . 12 14 Parts Lost 8 | . . . . . . . . . . . . . . . . . . . . . . . . 1 2 2 . . . . . . 1 2 Power 1 | . . . . . . . . . . . . . . . . . . . . . . . . . . 1 . . . . . . . . Propulsion 2 | . . . . . . . . . . . . . . . . . . . . . . . . . 1 1 . . . . . . . . Utility 4 | . . . . . . . . . . . . . . . . . . . . . . . . 1 . . . . . . . . 1 2 Weapon 1 | . . . . . . . . . . . . . . . . . . . . . . . . . 1 . . . . . . . . . Highest Loss Streak 1 | . . . . . . . . . . . . . . . . . . . . . . . . 1 1 1 . . . . . . 1 1 Average Slot Usage (%) 81 | . 85 85 99 100 85 69 69 69 69 69 69 69 71 73 73 69 73 75 76 75 70 76 76 75 72 91 93 94 93 86 81 83 80 86 Engine 2 | . . . 13 14 9 . . . . . . . . . . . . . . . . . . . . . . . . . . 3 2 . Core 1 | . . . . . . 6 2 . . . . . . . . . . . . . . . . . . 2 10 9 8 8 8 4 3 . Reactor 4 | . . . . . . . 4 7 7 7 7 7 6 6 6 6 6 11 11 11 11 11 11 11 10 7 . . . . . . 1 4 Treads 3 | . 28 28 28 28 22 . . . . . . . . . . . . . . . . . . . . . . . . . . . . . Hover 10 | . . . . . . . . . . . . . . . . . . . . . . . . . . 25 31 28 26 26 26 24 24 24 Flight 8 | . . . . . 5 23 23 23 23 23 23 23 20 20 20 20 20 16 17 17 17 17 17 17 14 3 . . . . . . . . Device 9 | . 14 14 9 . . 6 7 7 7 7 . 6 18 20 16 7 5 6 5 5 5 7 5 9 8 10 6 13 12 13 16 22 10 17 Storage 10 | . . . 17 28 30 7 7 7 7 7 14 7 6 6 6 6 6 5 5 5 5 5 5 5 8 7 8 9 13 13 13 12 12 7 Processor 5 | . 14 14 . . . 6 7 7 7 7 7 7 6 6 6 8 6 5 5 5 5 5 5 5 5 5 5 4 4 4 4 4 7 10 Hackware 2 | . . . . . . . . . . . . . . . . . . 8 11 10 5 5 5 5 5 9 10 9 8 3 . . . . Protection 5 | . . . . . . . . . . . . . . . 3 6 13 6 5 5 5 8 11 5 10 7 9 9 12 8 . . 6 14 Artifact 1 | . . . . . . . . . . . . . . . . . . . . . . . . . . . . . . 4 8 8 7 4 Ballistic Gun 3 | . 28 28 28 28 15 1 . . . . . . . . . . . . . . . . . . . . . . . . . . . . Launcher 2 | . . . . . . 7 7 7 7 7 7 7 6 6 6 6 8 5 5 . . . . . . 3 . . . . . . . . Slashing Weapon 1 | . . . . . . 5 7 6 . . . . . . . . . . . . . . . . . . . . . 3 4 4 2 2 Piercing Weapon 1 | . . . . . . . . . . . . . 6 6 6 6 3 5 5 5 5 5 5 5 5 3 5 4 4 . . . . . Naked Turns . | . . . . . . . . . . . . . . . . . . . . . . . . . . . . . . . . . . . Heaviest Build 178 | 8 3 3 55 55 75 21 29 29 28 28 59 59 32 31 32 57 33 50 45 45 49 51 51 56 85 90 75 93 99 151 151 151 178 160 Greatest Support 202 | 40 3 3 40 40 80 84 84 84 84 84 84 84 84 84 84 84 84 86 86 86 86 86 86 86 86 188 128 190 190 173 162 152 181 202 Greatest Overweight (x) 14 | . . . 1 1 1 5 . . . . . . . . . . . . . . . . 14 . . 2 . . . . . 1 13 . Average Overweight (x) . | . . . . 1 . . . . . . . . . . . . . . . . . . 2 . . . . . . . . . . . Largest Inventory Capacity 46 | 4 4 4 18 18 26 38 24 24 24 24 32 32 24 24 24 24 24 24 24 24 24 24 24 24 32 32 32 38 38 40 40 46 46 38 Average Capacity 27 | 4 4 4 13 18 23 24 24 24 24 24 31 24 24 24 24 24 24 24 24 24 24 24 24 24 29 27 28 32 38 39 40 38 39 30 Most Carried 46 | 4 4 4 17 18 26 26 24 24 24 24 29 25 24 24 24 24 24 23 23 23 23 24 24 24 30 31 29 34 38 40 40 39 46 38 Average Carried 25 | . 3 4 9 17 22 23 23 23 23 24 27 23 22 24 23 22 23 22 23 22 23 23 24 23 26 26 25 29 34 38 38 35 38 28 Final Capacity 40 | 4 4 4 18 18 26 24 24 24 24 24 32 24 24 24 24 24 24 24 24 24 24 24 24 24 30 24 32 38 38 40 40 38 38 24 Final Carried 39 | 4 4 4 17 18 26 24 23 24 24 24 25 23 24 24 24 24 24 23 23 23 23 24 24 24 28 23 29 34 38 38 39 34 38 23 Class Distribution -------------------- 17% | Trapper-Mutant 16% | Hacker-Mutant 13% | Hauler-Mutant 12% | Mutant 12% | Hacker-Sprinter 9% | Alien-Sprinter 8% | Alien-Mutant 6% | Alien-Gladiator Dominant Class ---------------- Mutant | -10/Materials Mutant | -10/Mines Mutant | -10/Exiles Mutant | -9/Mines Hauler-Mutant | -8/Materials Hauler-Mutant | -7/Factory Hauler-Mutant | -7/Waste Hauler-Mutant | -7/Factory Trapper-Mutant | -7/Lower Caves Trapper-Mutant | -7/Lower Caves Trapper-Mutant | -7/Zion Trapper-Mutant | -6/Proximity Caves Trapper-Mutant | -6/Factory Trapper-Mutant | -6/Lower Caves Trapper-Mutant | -6/Lower Caves Hauler-Mutant | -6/Data Miner Hauler-Mutant | -5/Proximity Caves Hacker-Sprinter | -5/Factory Hacker-Sprinter | -5/Waste Hacker-Sprinter | -5/Factory Hacker-Sprinter | -5/Extension Hacker-Sprinter | -5/Cetus Hacker-Mutant | -5/Archives Hacker-Sprinter | -5/Hub_04(d) Hauler-Sprinter | -4/Factory Hacker-Mutant | -4/Armory Hacker-Mutant | -4/Lab Hacker-Mutant | -3/Research Hacker-Mutant | -2/Research Hauler-Mutant | -2/Quarantine Alien-Sprinter | -2/Section 7 Alien-Sprinter | -1/Access Alien-Sprinter | -1/Command Alien-Gladiator | -1/Access_0 Resources | -11 -10 -10 -10 -9 -8 -7 -7 -7 -7 -7 -7 -6 -6 -6 -6 -6 -5 -5 -5 -5 -5 -5 -5 -5 -4 -4 -4 -3 -2 -2 -2 -1 -1 -1 ----------- Run | Scr Mat Min Exi Min Mat Fac Was Fac Low Low Zio Pro Fac Low Low Dat Pro Fac Was Fac Ext Cet Arc Hub Fac Arm Lab Res Res Qua Sec Acc Com Ac0 Matter Collected 4812 | 302 . . 27 31 116 60 125 10 . . 10 53 27 40 20 60 29 181 . 10 20 40 20 50 142 339 . 223 15 122 102 275 585 1778 Remotely . | . . . . . . . . . . . . . . . . . . . . . . . . . . . . . . . . . . . Salvage Created 9300 | 178 . . . . 125 60 . . 20 . . 88 66 . . 28 29 77 . . 239 62 122 753 315 480 . 652 15 320 102 275 1599 3695 Parts 494 | 13 . . . . 9 2 . . 3 . . 11 6 . . 4 1 4 . . 12 3 5 27 15 38 . 35 1 13 5 9 68 210 Haulers Intercepted 2 | . . . . . . 1 . . . . . . . . . . . . . . . . . . . . . 1 . . . . . . Recyclers Shooed 2 | . . . . . . . . . . . . . . . . . . . . . . . . . . . . . . . . . 2 . Parts Field Recycled . | . . . . . . . . . . . . . . . . . . . . . . . . . . . . . . . . . . . Retrieved Matter . | . . . . . . . . . . . . . . . . . . . . . . . . . . . . . . . . . . . Parts Self-Destructed 63 | . . . . . . . . . 20 . 2 19 . 7 14 . 1 . . . . . . . . . . . . . . . . . Prevented 2 | . . . . . . . . . . . . 2 . . . . . . . . . . . . . . . . . . . . . . Kills | -11 -10 -10 -10 -9 -8 -7 -7 -7 -7 -7 -7 -6 -6 -6 -6 -6 -5 -5 -5 -5 -5 -5 -5 -5 -4 -4 -4 -3 -2 -2 -2 -1 -1 -1 ------- Run | Scr Mat Min Exi Min Mat Fac Was Fac Low Low Zio Pro Fac Low Low Dat Pro Fac Was Fac Ext Cet Arc Hub Fac Arm Lab Res Res Qua Sec Acc Com Ac0 Combat Hostiles Destroyed 78 | . . . . . 2 . . . . . . 1 . . . . . . . . 2 . 1 1 7 9 . 7 . 3 . . 6 39 Melee 19 | . . . . . . . . . . . . . . . . . . . . . . . 1 1 1 4 . 2 . 1 . . 3 6 Guns 36 | . . . . . 2 . . . . . . . . . . . . . . . . . . . . . . . . 1 . . . 33 Cannons 5 | . . . . . . . . . . . . . . . . . . . . . . . . . . . . 5 . . . . . . AOE 10 | . . . . . . . . . . . . . . . . . . . . . 1 . . . 4 5 . . . . . . . . Classes Destroyed 18 | 2 . . . . 2 1 . . 1 . . 1 . . . . . . . . 1 . 1 4 2 . . 1 . . 1 . 1 . Worker 8 | . . . . . . . . . . . . . . . . . . . . . . . . 1 . . . 2 1 1 1 1 1 . Builder 2 | . . . . . . . . . . . . . . . . . . . . . . . . 1 . . . 1 . . . . . . Tunneler 6 | 5 . . . . . . . . . . . . . . . . . 1 . . . . . . . . . . . . . . . . Hauler 2 | . . . . . . 1 . . . . . . . . . . . . . . . . . . . . . 1 . . . . . . Recycler 8 | 1 . . . . . . . . . . . . . . . . . . . . 1 . . 3 . . . . . . . 2 1 . Minesweeper 2 | . . . . . . . . . 1 . . . . . . . 1 . . . . . . . . . . . . . . . . . Mechanic 1 | . . . . . . . . . . . . . . . . . . . . . . . . . . . . 1 . . . . . . Operator 2 | . . . . . . . . . . . . . . . . . . . . . . . 1 . . 1 . . . . . . . . Watcher 14 | . . . . . 1 . . . . . . . 2 . . . . 2 . . . . . 2 . 3 . 2 . 1 . . 1 . Swarmer 13 | . . . . . . . . . . . . . . . . . . . . . . . . . 4 4 . 5 . . . . . . Grunt 8 | . . . . . . . . . . . . . . . . . . . . . . . . 3 . 1 . 1 . 3 . . . . Researcher 1 | . . . . . . . . . . . . . . . . . . . . . . . . . . . . . . . 1 . . . Sentry 6 | . . . . . 2 . . . . . . . . . . . . . . . . . 1 . . . . 1 . . . . 2 . Hunter 1 | . . . . . . . . . . . . . . . . . . . . . 1 . . . . . . . . . . . . . Programmer 6 | . . . . . . . . . . . . . . . . . . . . . . . . . 1 4 . . . . . . 1 . Behemoth 6 | . . . . . . . . . . . . 1 . . . . . . . . 1 . . . 2 . . . . . . . 2 . M Guard 1 | . . . . . . . . . . . . . . . . . . . . . . . . . . . . . . . . . 1 . Enhanced Grunt 26 | . . . . . . . . . . . . . . . . . . . . . . . . . . . . . . . . . . 26 Enhanced Hunter 7 | . . . . . . . . . . . . . . . . . . . . . . . . . . . . . . . . . . 7 Martyr 8 | . . . . . . . . . . . . . . . . . . . . . . . . . . . . . . . . . 8 . Fireman 1 | . . . . . . . . . . . . . . . . . . . . . . . . 1 . . . . . . . . . . Best Kill Streak 8 | 4 . . . . 2 1 . . 1 . . 1 1 . . 1 1 1 . . 2 . 2 8 5 4 . 4 1 3 1 1 2 8 Combat Bots Only 8 | . . . . . 2 . . . . . . 1 . . . . . . . . 1 . 1 1 5 4 . 3 . 2 . . 2 8 Max Kills in Single Turn 8 | 1 . . . . 1 1 . . 1 . . 1 1 . . 1 1 1 . . 2 1 1 8 4 4 . 1 1 1 1 1 1 1 Gunslinging . | . . . . . . . . . . . . . . . . . . . . . . . . . . . . . . . . . . . Exploded 4 | . . . . . . . . . . . . . . . . . . . . . 1 . . . 4 4 . . . . . . . . Melee 1 | . . . . . . . . . . . . . . . . . . . . . . . 1 1 1 1 . 1 . 1 . . 1 1 Uniques/NPCs Destroyed 9 | . . . . . . . . . . . . . . . . 1 . . . . . 1 . . . . . . . . . . 1 6 Data Miner (-6/Data Miner) A7 (-5/Cetus) MAIN.C Shell (-1/Command) A8 (-1/Access_0) A6 (-1/Access_0) A5 (-1/Access_0) A2 (-1/Access_0) A4 (-1/Access_0) A3 (-1/Access_0) Combat | -11 -10 -10 -10 -9 -8 -7 -7 -7 -7 -7 -7 -6 -6 -6 -6 -6 -5 -5 -5 -5 -5 -5 -5 -5 -4 -4 -4 -3 -2 -2 -2 -1 -1 -1 -------- Run | Scr Mat Min Exi Min Mat Fac Was Fac Low Low Zio Pro Fac Low Low Dat Pro Fac Was Fac Ext Cet Arc Hub Fac Arm Lab Res Res Qua Sec Acc Com Ac0 Damage Taken 7905 | . 10 . . . 68 . . . 20 . . 205 30 . 114 100 19 . . . . 48 . 146 455 459 . 382 . 312 328 12 1268 3929 Core 863 | . . . . . . . . . 20 . . 31 . . 41 . . . . . . . . 32 47 44 . 58 . 6 60 . 15 509 Absorbed by Shields 2132 | . . . . . . . . . . . . . . . . . . . . . . 24 . . . . . . . 107 116 5 447 1433 Redirected to Core 50 | . . . . . . . . . . . . . . . . . . . . . . . . . . . . . . 6 44 . . . Core Remaining (%) 92 | 100 . . . 100 100 . . . . . . 92 . . . . 95 . . . . . . 96 . . 92 95 . . 95 . . 61 Volleys Fired 392 | 16 . . . . 10 2 . . . . . . . . 1 . . . . . 1 1 16 12 2 16 . 9 2 5 2 . 23 274 Largest 2 | 2 . . . . 2 1 . . . . . . . . 1 . . . . . 1 1 1 1 1 1 . 1 1 1 1 . 1 1 Hottest 100 | 40 . . . . 100 69 . . . . . . . . 30 . . . . . 69 69 69 69 33 69 . 100 90 40 90 . 46 100 Shots Fired 416 | 32 . . . . 18 2 . . . . . . . . 1 . . . . . 1 1 16 12 2 16 . 9 2 5 2 . 23 274 Gun 299 | 32 . . . . 16 . . . . . . . . . . . . . . . . . . . . . . . . 5 . . 11 235 Cannon 88 | . . . . . . 2 . . . . . . . . . . . . . . 1 1 16 12 . 4 . 9 2 . 2 . . 39 Launcher 17 | . . . . . . . . . . . . . . . 1 . . . . . . . . . 2 3 . . . . . . 11 . Special 12 | . . . . . 2 . . . . . . . . . . . . . . . . . . . . 9 . . . . . . 1 . Kinetic 196 | 32 . . . . 9 . . . . . . . . . . . . . . . . . . . . 1 . . . . . . . 154 Thermal 50 | . . . . . 2 . . . . . . . . . . . . . . . . . . . . . . 9 . . . . . 39 Explosive 4 | . . . . . . . . . . . . . . . 1 . . . . . . . . . 2 1 . . . . . . . . Electromagnetic 71 | . . . . . 7 2 . . . . . . . . . . . . . . 1 1 16 12 . 5 . . . 5 . . 22 . Slashing 81 | . . . . . . . . . . . . . . . . . . . . . . . . . . . . . . . . . . 81 Phasic 4 | . . . . . . . . . . . . . . . . . . . . . . . . . . . . . 2 . 2 . . . Robot Hit Streak 20 | 7 . . . . 5 5 . . . . . . . . . . . . . . . . 6 8 . 5 . 8 . 13 . . 17 20 Robot Miss Streak 6 | 3 . . . . 6 1 . . . . . . . . . . . . . . . 2 5 1 . 2 . . . . . . 3 5 Penetration Max 3 | . . . . . . . . . . . . . . . . . . . . . . . . . . . . . . 3 . . . 3 Secondary Targets . | . . . . . . . . . . . . . . . . . . . . . . . . . . . . . . . . . . . Shots Hit Robots 504 | 21 . . . . 6 4 . . 1 . . 4 3 1 . 1 2 3 . 5 2 5 18 7 3 22 . 19 1 8 2 6 53 307 Core Hits 378 | 11 1 . . 2 4 . . . 1 . . . 2 . . 1 1 3 . . 4 2 4 15 6 21 . 13 1 6 2 3 33 242 Critical Hits 220 | . . . . . . . . . . . . 1 1 . . . . . . . . 1 . . 1 3 . 5 1 2 . . 5 200 Critical Kills 43 | . . . . . . . . . . . . . 1 . . . . . . . . . . . 1 . . 5 1 1 . . 3 31 Critical Parts Destroyed 93 | . . . . . . . . . . . . 1 . . . . . . . . . . . . . 3 . . . 1 . . 2 86 Melee Attacks 359 | . . . . . . 21 . . 2 1 4 4 12 1 . 5 3 10 . 14 3 5 7 3 13 30 10 27 3 18 7 8 42 106 Impact 7 | . . . . . . . . . 2 1 4 . . . . . . . . . . . . . . . . . . . . . . . Slashing 197 | . . . . . . 20 . . . . . . . . . . . . . . . . . . . . . . . 16 7 8 40 106 Piercing 140 | . . . . . . . . . . . . 2 11 1 . 5 3 10 . 8 2 5 3 3 13 30 10 27 3 2 . . 2 . Sneak Attacks 62 | . . . . . . 2 . . 1 . . 2 1 1 . 1 1 1 . 4 1 5 5 . . 3 . 7 1 1 2 3 20 . Combat Hostiles 4 | . . . . . . . . . . . . . . . . . . . . 1 . . . . . 1 . 1 . . . . 1 . Follow-up Attacks . | . . . . . . . . . . . . . . . . . . . . . . . . . . . . . . . . . . . Damage Inflicted 29175 | 184 5 . . 36 113 190 . . 128 . . 43 138 179 60 208 259 305 . . 172 560 363 1230 298 1807 . 2148 189 382 583 1148 7828 10619 Guns 3533 | 184 . . . . 76 . . . . . . . . . . . . . . . . . . . . . . . . 14 . . 11 3248 Cannons 1900 | . . . . . . 30 . . . . . . . . . . . . . . . . 61 32 . 94 . 265 . . . . . 1418 Explosions 2656 | . . . . . . . . . . . . . . . 60 . . . . . 172 . . 1114 253 515 . . . . . . 542 . Melee 21008 | . . . . . . 160 . . 128 . . 43 138 179 . 208 259 305 . . . 560 302 84 45 1198 . 1883 189 368 583 1148 7275 5953 Ramming 78 | . 5 . . 36 37 . . . . . . . . . . . . . . . . . . . . . . . . . . . . . Kinetic 1801 | 184 . . . . 31 . . . . . . . . . . . . . . . . . . . . . . . . . . . . 1586 Thermal 2082 | . . . . . . . . . . . . . . . . . . . . . 172 . . . . . . 265 . . . . 227 1418 Explosive 736 | . . . . . . . . . . . . . . . 60 . . . . . . . . . 253 423 . . . . . . . . Electromagnetic 1808 | . . . . . 45 30 . . . . . . . . . . . . . . . . 61 1146 . 186 . . . 14 . . 326 . Impact 128 | . . . . . . . . . 128 . . . . . . . . . . . . . . . . . . . . . . . . . Slashing 16965 | . . . . . . 160 . . . . . . . . . . . . . . . . . . . . . . . 184 583 1148 7275 7615 Piercing 5577 | . . . . . . . . . . . . 43 138 179 . 208 259 305 . . . 560 302 84 45 1198 . 1883 189 184 . . . . Highest Corruption 6 | . . . . . . . . . . . . . . . . . . . . . . . . 1 1 2 2 1 1 1 . . 6 1 Average Corruption 2 | . . . . . . . . . . . . . . . . . . . . . . . . 1 1 1 2 1 1 1 . . 5 1 Corruption Purged 6 | . . . . . . . . . . . . . . . . . . . . . . . . . . . . . . . . . 6 . Effects 59 | . . . . . . . . . . . . . . . . . . . . . . . . 1 2 6 2 . . 1 . . 37 10 Message Errors 21 | . . . . . . . . . . . . . . . . . . . . . . . . . . 3 . . . . . . 13 5 Matter Fused 11 | . . . . . . . . . . . . . . . . . . . . . . . . . . . . . . . . . 11 . Heat Flow Errors 2 | . . . . . . . . . . . . . . . . . . . . . . . . . . . 1 . . . . . 1 . Energy Discharges 9 | . . . . . . . . . . . . . . . . . . . . . . . . 1 . 3 . . . 1 . . 2 2 Data Loss (minor) 6 | . . . . . . . . . . . . . . . . . . . . . . . . . 1 . . . . . . . 5 . Data Loss (major) 3 | . . . . . . . . . . . . . . . . . . . . . . . . . . . . . . . . . 3 . Targeting Errors 7 | . . . . . . . . . . . . . . . . . . . . . . . . . 1 . 1 . . . . . 2 3 Overload Shots . | . . . . . . . . . . . . . . . . . . . . . . . . . . . . . . . . . . . Overflow Damage 4136 | . . . . . . 20 . . . . . . . 150 2 . 178 . . . . 27 . 98 . 48 . 466 . 144 . 324 2402 277 Projectiles 7 | . . . . . . . . . . . . . . . . . . . . . . . . . . . . . . . . . . 7 Explosions 113 | . . . . . . . . . . . . . . . 2 . . . . . . . . 98 . 13 . . . . . . . . Melee 4016 | . . . . . . 20 . . . . . . . 150 . . 178 . . . . 27 . . . 35 . 466 . 144 . 324 2402 270 Knockbacks . | . . . . . . . . . . . . . . . . . . . . . . . . . . . . . . . . . . . Impact . | . . . . . . . . . . . . . . . . . . . . . . . . . . . . . . . . . . . Kinetic . | . . . . . . . . . . . . . . . . . . . . . . . . . . . . . . . . . . . Secondary . | . . . . . . . . . . . . . . . . . . . . . . . . . . . . . . . . . . . Self-Inflicted Damage 128 | . . . . . . . . . . . . . . . . . . . . . . . . 97 . . . . . . . . 31 . Shots 2 | . . . . . . . . . . . . . . . . . . . . . . . . 1 . . . . . . . . 1 . Rammed 13 | . 1 . . 5 7 . . . . . . . . . . . . . . . . . . . . . . . . . . . . . Targets Rammed 14 | . 1 . . 5 8 . . . . . . . . . . . . . . . . . . . . . . . . . . . . . Kicked . | . . . . . . . . . . . . . . . . . . . . . . . . . . . . . . . . . . . Crushed 1 | . . . . . 1 . . . . . . . . . . . . . . . . . . . . . . . . . . . . . Highest Temperature 332 | . . . . . 25 32 . . . . . 5 . . . . . 8 5 14 46 47 332 247 24 78 180 195 49 243 212 . 230 50 Average Temperature 35 | . . . . . 8 19 . . . . . 3 . . . . . 2 2 2 4 6 86 82 9 25 68 97 11 40 91 . 19 30 Received Heat Transfer 696 | . 6 . . . 27 . . . . . . 42 . . 27 12 9 . . . . . . 9 99 78 . 36 . 51 54 . 84 162 Effects 1 | . . . . . . . . . . . . . . . . . . . . . . . 1 . . . . . . . . . . . Matter Decay 1 | . . . . . . . . . . . . . . . . . . . . . . . 1 . . . . . . . . . . . Siege Activations . | . . . . . . . . . . . . . . . . . . . . . . . . . . . . . . . . . . . Robots Corrupted 5 | . . . . . . 1 . . . . . . . . . . . . . . . . . 2 . . . . . 1 . . 1 . Combat Hostiles 2 | . . . . . . . . . . . . . . . . . . . . . . . . . . . . . . 1 . . 1 . Parts Fried 12 | . . . . . . 2 . . . . . . . . . . . . . . . . . 2 . 2 . . . 3 . . 3 . Impact Corruptions . | . . . . . . . . . . . . . . . . . . . . . . . . . . . . . . . . . . . Robots Melted . | . . . . . . . . . . . . . . . . . . . . . . . . . . . . . . . . . . . Combat Hostiles . | . . . . . . . . . . . . . . . . . . . . . . . . . . . . . . . . . . . Parts Melted 1 | . . . . . 1 . . . . . . . . . . . . . . . . . . . . . . . . . . . . . Heat Transferred 1285 | . . . . . . . . . . . . . . . . . . . . . 100 . . . . . . 222 . . . . 135 828 Parts Sabotaged . | . . . . . . . . . . . . . . . . . . . . . . . . . . . . . . . . . . . Parts Stolen . | . . . . . . . . . . . . . . . . . . . . . . . . . . . . . . . . . . . Parts Stripped . | . . . . . . . . . . . . . . . . . . . . . . . . . . . . . . . . . . . Power Chain Reactions 2 | . . . . . . . . . . . . . . . . . . . . . . . . . . . . . . . . . 2 . Missiles Intercepted . | . . . . . . . . . . . . . . . . . . . . . . . . . . . . . . . . . . . Alert | -11 -10 -10 -10 -9 -8 -7 -7 -7 -7 -7 -7 -6 -6 -6 -6 -6 -5 -5 -5 -5 -5 -5 -5 -5 -4 -4 -4 -3 -2 -2 -2 -1 -1 -1 ------- Run | Scr Mat Min Exi Min Mat Fac Was Fac Low Low Zio Pro Fac Low Low Dat Pro Fac Was Fac Ext Cet Arc Hub Fac Arm Lab Res Res Qua Sec Acc Com Ac0 Peak Influence 3406 | 30 121 46 . . 116 57 6 285 . . . . 361 . . . . 122 34 290 851 664 334 968 695 942 . 381 278 615 502 619 3406 . Initial 476 | . 19 46 . . . 16 6 4 . . . . 74 . . . . 2 19 23 112 476 229 46 473 340 . . 202 156 267 300 268 . Average 503 | 18 47 46 . . 17 16 6 148 . . . . 214 . . . . 68 24 128 528 476 272 491 497 526 . 177 224 385 406 513 2147 . Maximum Alert Level 5 | . . . . . . . . 1 . . . . 1 . . . . . . 1 3 2 1 3 2 3 . 1 1 2 2 2 5 . Low Security (%) 41 | 100 100 100 . 100 100 100 100 70 . . . . 48 . . . . 100 100 82 8 . 29 21 . . . 51 8 10 . . . . Level 1 21 | . . . . . . . . 29 . . . . 51 . . . . . . 17 37 39 70 40 . 15 . 48 91 34 39 22 3 . Level 2 19 | . . . . . . . . . . . . . . . . . . . . . 10 60 . . 99 67 . . . 55 60 77 . . Level 3 4 | . . . . . . . . . . . . . . . . . . . . . 44 . . 37 . 17 . . . . . . 6 . Level 4 3 | . . . . . . . . . . . . . . . . . . . . . . . . . . . . . . . . . 26 . Level 5 5 | . . . . . . . . . . . . . . . . . . . . . . . . . . . . . . . . . 38 . High Security 3 | . . . . . . . . . . . . . . . . . . . . . . . . . . . . . . . . . 24 . Max Security . | . . . . . . . . . . . . . . . . . . . . . . . . . . . . . . . . . . . Squads Dispatched 67 | . 2 . . . 4 4 . . . . . 1 2 . 1 . . 2 . 3 4 . . 4 2 4 . 2 . 1 2 1 28 . Investigation 14 | . 1 . . . . 2 . . . . . . 1 . . . . . . 2 2 . . . 1 2 . . . 1 1 . 1 . Extermination 10 | . . . . . . 2 . . . . . . 1 . . . . 1 . . . . . . 1 2 . 1 . . . . 2 . Reinforcement 11 | . 1 . . . 1 . . . . . . . . . . . . 1 . 1 2 . . . . . . 1 . . 1 . 3 . Assault 26 | . . . . . . . . . . . . 1 . . 1 . . . . . . . . 1 . . . . . . . 1 22 . Garrison 6 | . . . . . 3 . . . . . . . . . . . . . . . . . . 3 . . . . . . . . . . Intercept . | . . . . . . . . . . . . . . . . . . . . . . . . . . . . . . . . . . . Construction Impeded . | . . . . . . . . . . . . . . . . . . . . . . . . . . . . . . . . . . . Haulers Reinforced 2 | . . . . . . . . . . . . . . . . . . . . 1 . . . . . . . 1 . . . . . . Stealth | -11 -10 -10 -10 -9 -8 -7 -7 -7 -7 -7 -7 -6 -6 -6 -6 -6 -5 -5 -5 -5 -5 -5 -5 -5 -4 -4 -4 -3 -2 -2 -2 -1 -1 -1 --------- Run | Scr Mat Min Exi Min Mat Fac Was Fac Low Low Zio Pro Fac Low Low Dat Pro Fac Was Fac Ext Cet Arc Hub Fac Arm Lab Res Res Qua Sec Acc Com Ac0 Distress Signals 24 | . 1 . . . . 1 . 1 . . . . 1 . . . . 1 . 2 3 2 . . 3 4 . 2 . . 1 . 2 . Communications Jammed . | . . . . . . . . . . . . . . . . . . . . . . . . . . . . . . . . . . . Distress Signals . | . . . . . . . . . . . . . . . . . . . . . . . . . . . . . . . . . . . Times Spotted 419 | . 4 . . . 6 3 . 4 6 . . 17 8 1 12 3 4 6 3 12 23 12 5 12 26 44 . 39 1 13 21 1 80 53 Peak Tracking Total 17 | . 5 . . . 2 3 . 2 2 . . 9 2 2 17 3 3 3 3 2 6 5 3 5 13 8 . 11 3 4 11 1 14 9 Tactical Retreats 53 | . 1 . . . . 1 . . 1 . . 2 1 . 4 . 2 . . 2 1 . . 1 3 8 . 7 . 4 6 . 9 . Traps | -11 -10 -10 -10 -9 -8 -7 -7 -7 -7 -7 -7 -6 -6 -6 -6 -6 -5 -5 -5 -5 -5 -5 -5 -5 -4 -4 -4 -3 -2 -2 -2 -1 -1 -1 ------- Run | Scr Mat Min Exi Min Mat Fac Was Fac Low Low Zio Pro Fac Low Low Dat Pro Fac Was Fac Ext Cet Arc Hub Fac Arm Lab Res Res Qua Sec Acc Com Ac0 Traps Triggered 11 | . . . . . . 1 . . . . . . . . . . . 1 . . . . . . 1 3 . 1 1 1 1 . 1 . Indirectly . | . . . . . . . . . . . . . . . . . . . . . . . . . . . . . . . . . . . Trap Hack Attempts . | . . . . . . . . . . . . . . . . . . . . . . . . . . . . . . . . . . . Triggered . | . . . . . . . . . . . . . . . . . . . . . . . . . . . . . . . . . . . Disarmed . | . . . . . . . . . . . . . . . . . . . . . . . . . . . . . . . . . . . Reprogrammed . | . . . . . . . . . . . . . . . . . . . . . . . . . . . . . . . . . . . Reused 4 | . . . . . . . . . . . . 1 . . . 1 . . . . . . . . . . . . . 2 . . . . Traps Extracted . | . . . . . . . . . . . . . . . . . . . . . . . . . . . . . . . . . . . Installed 8 | . . . . . . . . . . . . 1 . . . 5 . . . . . . . . . . . . . 2 . . . . Triggered 6 | . . . . . . . . . 2 . . 2 . . . . . . . . . . . . . . . . . 2 . . . . Fabricated Traps 2 | . . . . . . . . . . . . . . . . 2 . . . . . . . . . . . . . . . . . . Machines | -11 -10 -10 -10 -9 -8 -7 -7 -7 -7 -7 -7 -6 -6 -6 -6 -6 -5 -5 -5 -5 -5 -5 -5 -5 -4 -4 -4 -3 -2 -2 -2 -1 -1 -1 ---------- Run | Scr Mat Min Exi Min Mat Fac Was Fac Low Low Zio Pro Fac Low Low Dat Pro Fac Was Fac Ext Cet Arc Hub Fac Arm Lab Res Res Qua Sec Acc Com Ac0 Machines Disabled 62 | . . . . . . . . 2 . . . . 2 . . . . . . . 3 . . 14 . 8 2 . 2 9 5 1 8 6 Max in Single Turn 14 | . . . . . . . . . . . . . . . . . . . . . 3 . . 14 . 1 1 . 1 1 1 1 1 1 Garrison Access 6 | . . . . . . . . . . . . . 1 . . . . . . 2 . . . . . . . 1 . 1 . 1 . . Network Hub 1 | . . . . . . . . . . . . . . . . . . . . . . . . 1 . . . . . . . . . . Energy Cycler 1 | . . . . . . . . . . . . . . . . . . . . . 1 . . . . . . . . . . . . . Machines Sabotaged . | . . . . . . . . . . . . . . . . . . . . . . . . . . . . . . . . . . . Garrisons Compromised . | . . . . . . . . . . . . . . . . . . . . . . . . . . . . . . . . . . . Overloaded Fab Kills . | . . . . . . . . . . . . . . . . . . . . . . . . . . . . . . . . . . . Fab Network Shutdowns . | . . . . . . . . . . . . . . . . . . . . . . . . . . . . . . . . . . . Hacking | -11 -10 -10 -10 -9 -8 -7 -7 -7 -7 -7 -7 -6 -6 -6 -6 -6 -5 -5 -5 -5 -5 -5 -5 -5 -4 -4 -4 -3 -2 -2 -2 -1 -1 -1 --------- Run | Scr Mat Min Exi Min Mat Fac Was Fac Low Low Zio Pro Fac Low Low Dat Pro Fac Was Fac Ext Cet Arc Hub Fac Arm Lab Res Res Qua Sec Acc Com Ac0 Machines Accessed 46 | . 3 . 2 . 7 3 . 5 . . 1 . 1 . 1 4 . 2 . 4 . . . . . 3 . 5 . 2 . 1 . 2 Terminals 10 | . 1 . . . 4 2 . 3 . . . . . . . . . . . . . . . . . . . . . . . . . . Fabricators 9 | . . . . . . . . 2 . . . . . . . . . 1 . 1 . . . . . 3 . 2 . . . . . . Repair Stations 1 | . . . . . . . . . . . . . . . . . . . . . . . . . . . . 1 . . . . . . Recycling Units 3 | . 2 . . . 1 . . . . . . . . . . . . . . . . . . . . . . . . . . . . . Scanalyzers 5 | . . . . . 1 . . . . . . . . . . . . 1 . 1 . . . . . . . 1 . 1 . . . . Garrison Access 8 | . . . . . 1 1 . . . . . . 1 . . . . . . 2 . . . . . . . 1 . 1 . 1 . . Total Hacks 174 | . 6 . 2 . 13 9 . 13 . . 5 . 1 . 1 26 . 9 . 13 . . . . . 22 . 41 . 5 . 1 . 7 Successful 114 | . 4 . 2 . 8 3 . 6 . . 5 . 1 . 1 26 . 5 . 4 . . . . . 12 . 26 . 4 . . . 7 Failed 60 | . 2 . . . 5 6 . 7 . . . . . . . . . 4 . 9 . . . . . 10 . 15 . 1 . 1 . . Catastrophic 11 | . 1 . . . . 3 . 1 . . . . . . . . . 1 . 3 . . . . . 1 . . . . . 1 . . Database Lockouts . | . . . . . . . . . . . . . . . . . . . . . . . . . . . . . . . . . . . Manual 312 | . 2 . 1 . 10 4 . 6 . . . . 15 . . . . 18 . 33 21 12 . 12 12 28 . 39 10 33 17 19 20 . Terminals 26 | . 3 . . . 7 7 . 9 . . . . . . . . . . . . . . . . . . . . . . . . . . Fabricators 57 | . . . . . . . . 4 . . . . . . . . . 6 . 8 . . . . . 22 . 17 . . . . . . Repair Stations 2 | . . . . . . . . . . . . . . . . . . . . . . . . . . . . 2 . . . . . . Recycling Units 6 | . 3 . . . 3 . . . . . . . . . . . . . . . . . . . . . . . . . . . . . Scanalyzers 31 | . . . . . 1 . . . . . . . . . . . . 3 . 2 . . . . . . . 21 . 4 . . . . Garrison Access 11 | . . . . . 2 2 . . . . . . 1 . . . . . . 3 . . . . . . . 1 . 1 . 1 . . Terminal Hacks 48 | . . . 2 . 1 2 . 4 . . 5 . . . 1 26 . . . . . . . . . . . . . . . . . 7 Record 15 | . . . 1 . . . . . . . . . . . . 11 . . . . . . . . . . . . . . . . . 3 Part Schematic 11 | . . . . . . . . 1 . . 5 . . . . 5 . . . . . . . . . . . . . . . . . . Robot Schematic 8 | . . . . . . . . 1 . . . . . . . 7 . . . . . . . . . . . . . . . . . . Prototype ID Bank 3 | . . . . . . . . . . . . . . . . 3 . . . . . . . . . . . . . . . . . . Open Door 1 | . . . . . . . . . . . . . . . 1 . . . . . . . . . . . . . . . . . . . Level Access Points 1 | . . . . . . 1 . . . . . . . . . . . . . . . . . . . . . . . . . . . . Branch Access Points 1 | . . . . . . . . 1 . . . . . . . . . . . . . . . . . . . . . . . . . . Scanalyzer Index 1 | . . . . . 1 . . . . . . . . . . . . . . . . . . . . . . . . . . . . . Locate Traps 1 | . . . . . . . . 1 . . . . . . . . . . . . . . . . . . . . . . . . . . Recall Extermination 1 | . . . . . . 1 . . . . . . . . . . . . . . . . . . . . . . . . . . . . EX-Prototype ID Bank 1 | . . . 1 . . . . . . . . . . . . . . . . . . . . . . . . . . . . . . . Gate Test 138-A 1 | . . . . . . . . . . . . . . . . . . . . . . . . . . . . . . . . . . 1 Gate Test 138-B 1 | . . . . . . . . . . . . . . . . . . . . . . . . . . . . . . . . . . 1 Gate Test 138-C 2 | . . . . . . . . . . . . . . . . . . . . . . . . . . . . . . . . . . 2 Fabricator Hacks 18 | . . . . . . . . 1 . . . . . . . . . 3 . 1 . . . . . 8 . 5 . . . . . . Load Schematic 6 | . . . . . . . . 1 . . . . . . . . . 1 . 1 . . . . . 2 . 1 . . . . . . Build 12 | . . . . . . . . . . . . . . . . . . 2 . . . . . . . 6 . 4 . . . . . . Repair Station Hacks 2 | . . . . . . . . . . . . . . . . . . . . . . . . . . . . 2 . . . . . . Scan Component 1 | . . . . . . . . . . . . . . . . . . . . . . . . . . . . 1 . . . . . . Repair 1 | . . . . . . . . . . . . . . . . . . . . . . . . . . . . 1 . . . . . . Recycling Unit Hacks 3 | . 2 . . . 1 . . . . . . . . . . . . . . . . . . . . . . . . . . . . . Report Inventory 2 | . 2 . . . . . . . . . . . . . . . . . . . . . . . . . . . . . . . . . Retrieve Components 1 | . . . . . 1 . . . . . . . . . . . . . . . . . . . . . . . . . . . . . Scanalyzer 20 | . . . . . 1 . . . . . . . . . . . . 2 . 1 . . . . . . . 13 . 3 . . . . Insert Component 16 | . . . . . 1 . . . . . . . . . . . . 2 . 1 . . . . . . . 9 . 3 . . . . Analyze 4 | . . . . . . . . . . . . . . . . . . . . . . . . . . . . 4 . . . . . . Garrison Access Hacks 2 | . . . . . . . . . . . . . . . . . . . . 1 . . . . . . . 1 . . . . . . Seal Access 2 | . . . . . . . . . . . . . . . . . . . . 1 . . . . . . . 1 . . . . . . Unauthorized Hacks 21 | . 2 . . . 5 1 . 1 . . . . 1 . . . . . . 1 . . . . . 4 . 5 . 1 . . . . Terminals 5 | . 1 . . . 2 1 . 1 . . . . . . . . . . . . . . . . . . . . . . . . . . Track 1 | . 1 . . . . . . . . . . . . . . . . . . . . . . . . . . . . . . . . . Botnet 4 | . . . . . 2 1 . 1 . . . . . . . . . . . . . . . . . . . . . . . . . . Fabricators 9 | . . . . . . . . . . . . . . . . . . . . . . . . . . 4 . 5 . . . . . . Report 2 | . . . . . . . . . . . . . . . . . . . . . . . . . . 1 . 1 . . . . . . Prioritize 3 | . . . . . . . . . . . . . . . . . . . . . . . . . . 1 . 2 . . . . . . Siphon 4 | . . . . . . . . . . . . . . . . . . . . . . . . . . 2 . 2 . . . . . . Repair Stations . | . . . . . . . . . . . . . . . . . . . . . . . . . . . . . . . . . . . Recycling Units 3 | . 1 . . . 2 . . . . . . . . . . . . . . . . . . . . . . . . . . . . . Recyclers 1 | . . . . . 1 . . . . . . . . . . . . . . . . . . . . . . . . . . . . . Mask 1 | . . . . . 1 . . . . . . . . . . . . . . . . . . . . . . . . . . . . . Tunnel 1 | . 1 . . . . . . . . . . . . . . . . . . . . . . . . . . . . . . . . . Scanalyzers . | . . . . . . . . . . . . . . . . . . . . . . . . . . . . . . . . . . . Garrison Access 4 | . . . . . 1 . . . . . . . 1 . . . . . . 1 . . . . . . . . . 1 . . . . Reprogram 1 | . . . . . 1 . . . . . . . . . . . . . . . . . . . . . . . . . . . . . Jam 3 | . . . . . . . . . . . . . 1 . . . . . . 1 . . . . . . . . . 1 . . . . Data Cores Recovered . | . . . . . . . . . . . . . . . . . . . . . . . . . . . . . . . . . . . Used . | . . . . . . . . . . . . . . . . . . . . . . . . . . . . . . . . . . . Hacking Detections 26 | . 1 . . . 6 3 . 5 . . . . . . . . . 2 . 2 . . . . . 3 . 2 . 1 . 1 . . Full Trace Events 3 | . 1 . . . . 2 . . . . . . . . . . . . . . . . . . . . . . . . . . . . Feedback Events . | . . . . . . . . . . . . . . . . . . . . . . . . . . . . . . . . . . . Feedback Blocked . | . . . . . . . . . . . . . . . . . . . . . . . . . . . . . . . . . . . Robot Schematics Acquired 45 | . . . . . . . . 1 . . . . . . . 7 . . . 4 . 3 . . . 5 . 9 . 8 . . 8 . Robots Built 16 | . . . . . . . . . . . . . . . . . . . . . . . . . . 8 . 8 . . . . . . Matter 1942 | . . . . . . . . . . . . . . . . . . . . . . . . . . 1032 . 910 . . . . . . Time 489 | . . . . . . . . . . . . . . . . . . . . . . . . . . 252 . 237 . . . . . . Total Robot Build Rating 108 | . . . . . . . . . . . . . . . . . . . . . . . . . . 48 . 60 . . . . . . Part Schematics Acquired 106 | . . . . . . . . 1 . . 5 . . . . 5 . . . 9 . . . 9 . . . 14 . 23 14 . 26 . Parts Built 6 | . . . . . . . . . . . . . . . . . . 2 . . . . . . . 4 . . . . . . . . Matter 1084 | . . . . . . . . . . . . . . . . . . 636 . . . . . . . 448 . . . . . . . . Time 264 | . . . . . . . . . . . . . . . . . . 168 . . . . . . . 96 . . . . . . . . Total Part Build Rating 44 | . . . . . . . . . . . . . . . . . . 12 . . . . . . . 32 . . . . . . . . Parts Repaired 1 | . . . . . . . . . . . . . . . . . . . . . . . . . . . . 1 . . . . . . Time 51 | . . . . . . . . . . . . . . . . . . . . . . . . . . . . 51 . . . . . . Parts Recycled . | . . . . . . . . . . . . . . . . . . . . . . . . . . . . . . . . . . . Recycled Matter . | . . . . . . . . . . . . . . . . . . . . . . . . . . . . . . . . . . . Retrieved Matter . | . . . . . . . . . . . . . . . . . . . . . . . . . . . . . . . . . . . Retrieved Components . | . . . . . . . . . . . . . . . . . . . . . . . . . . . . . . . . . . . Parts Scanalyzed 4 | . . . . . . . . . . . . . . . . . . . . . . . . . . . . 4 . . . . . . Part Schematics Acquired 4 | . . . . . . . . . . . . . . . . . . . . . . . . . . . . 4 . . . . . . Parts Damaged 1 | . . . . . . . . . . . . . . . . . . . . . . . . . . . . 1 . . . . . . Bothacking | -11 -10 -10 -10 -9 -8 -7 -7 -7 -7 -7 -7 -6 -6 -6 -6 -6 -5 -5 -5 -5 -5 -5 -5 -5 -4 -4 -4 -3 -2 -2 -2 -1 -1 -1 ------------ Run | Scr Mat Min Exi Min Mat Fac Was Fac Low Low Zio Pro Fac Low Low Dat Pro Fac Was Fac Ext Cet Arc Hub Fac Arm Lab Res Res Qua Sec Acc Com Ac0 Used RIF Installer . | . . . . . . . . . . . . . . . . . . . . . . . . . . . . . . . . . . . Robots Hacked 9 | . . . . . . 1 . . . . . . 1 . . . . . . 3 . . 4 . . . . . . . . . . . Non-combat 8 | . . . . . . 1 . . . . . . 1 . . . . . . 2 . . 4 . . . . . . . . . . . Combat 1 | . . . . . . . . . . . . . . . . . . . . 1 . . . . . . . . . . . . . . Robot Hacks Applied 10 | . . . . . . 1 . . . . . . 1 . . . . . . 4 . . 4 . . . . . . . . . . . parse_system 1 | . . . . . . . . . . . . . . . . . . . . 1 . . . . . . . . . . . . . . find_chute 2 | . . . . . . 1 . . . . . . 1 . . . . . . . . . . . . . . . . . . . . . find_fabricator 1 | . . . . . . . . . . . . . . . . . . . . 1 . . . . . . . . . . . . . . check_alert 6 | . . . . . . . . . . . . . . . . . . . . 2 . . 4 . . . . . . . . . . . Relay Couplers Released 4 | . . . . . . . . . . . . . . . . . . . . . . . . . . . . . . . . 4 . . Machine Destruction 4 | . . . . . . . . . . . . . . . . . . . . . . . . . . . . . . . . 4 . . Robots Rewired 10 | . . . . . . . . . . . . 2 . . . . . . . . 1 . . . . 6 . . . . . . 1 . Allies Hacked 24 | . . . . . . . . . . . . . . . . . . . . 5 6 . 1 4 . 4 . . . . . . 4 . Hacks Repelled . | . . . . . . . . . . . . . . . . . . . . . . . . . . . . . . . . . . . Allies | -11 -10 -10 -10 -9 -8 -7 -7 -7 -7 -7 -7 -6 -6 -6 -6 -6 -5 -5 -5 -5 -5 -5 -5 -5 -4 -4 -4 -3 -2 -2 -2 -1 -1 -1 -------- Run | Scr Mat Min Exi Min Mat Fac Was Fac Low Low Zio Pro Fac Low Low Dat Pro Fac Was Fac Ext Cet Arc Hub Fac Arm Lab Res Res Qua Sec Acc Com Ac0 Total Allies 180 | . . 3 . . 1 . 20 . . . 12 2 4 . . . . 2 1 10 24 8 1 4 . 16 . 8 2 . . 9 53 . Largest Group 23 | . . 3 3 3 3 2 20 20 16 8 12 12 4 4 3 . . 2 3 8 23 18 11 9 5 9 . 6 1 . . 9 21 . Highest-Rated Group 2245 | . . 40 40 40 41 26 556 556 480 250 327 327 240 240 205 . . 84 115 406 1016 1208 591 521 283 468 . 252 31 . . 1129 2245 . Highest-Rated Ally 268 | . . 16 16 16 16 16 33 33 33 33 41 41 70 70 70 . . 42 42 157 147 147 138 138 117 54 . 54 31 . . 268 268 . Zionite Dispatches 16 | . . . . . . . . . . . . . 3 . . . . 1 . 1 3 1 . . . . . . 2 . . 5 . . Heavy 2 | . . . . . . . . . . . . . . . . . . . . . . . . . . . . . . . . 2 . . Light 3 | . . . . . . . . . . . . . 1 . . . . . . . 1 . . . . . . . . . . 1 . . Recon 1 | . . . . . . . . . . . . . 1 . . . . . . . . . . . . . . . . . . . . . Fire 2 | . . . . . . . . . . . . . . . . . . . . . 2 . . . . . . . . . . . . . Hacker 2 | . . . . . . . . . . . . . . . . . . 1 . . . 1 . . . . . . . . . . . . Experimental 1 | . . . . . . . . . . . . . . . . . . . . . . . . . . . . . . . . 1 . . Hero 1 | . . . . . . . . . . . . . . . . . . . . 1 . . . . . . . . . . . . . . Melee Resupply 1 | . . . . . . . . . . . . . . . . . . . . . . . . . . . . . 1 . . . . . Heavy Resupply 1 | . . . . . . . . . . . . . 1 . . . . . . . . . . . . . . . . . . . . . Zionite Resupply 2 | . . . . . . . . . . . . . . . . . . . . . . . . . . . . . 1 . . 1 . . Total Orders 31 | . . . . . . . . . . . . . 1 . . . . 14 . . . 9 . . . . . 1 3 . . 2 1 . STAY 1 | . . . . . . . . . . . . . . . . . . 1 . . . . . . . . . . . . . . . . ROAM 7 | . . . . . . . . . . . . . . . . . . 4 . . . 3 . . . . . . . . . . . . FOLLOW 7 | . . . . . . . . . . . . . . . . . . 3 . . . 3 . . . . . . 1 . . . . . AID 1 | . . . . . . . . . . . . . . . . . . . . . . . . . . . . . . . . . 1 . DROP 2 | . . . . . . . . . . . . . . . . . . . . . . . . . . . . . 2 . . . . . EXPLORE 4 | . . . . . . . . . . . . . . . . . . 2 . . . 2 . . . . . . . . . . . . RETURN 9 | . . . . . . . . . . . . . 1 . . . . 4 . . . 1 . . . . . 1 . . . 2 . . Ally Attacks 1177 | . . . . . 25 2 . 69 49 3 . 72 39 13 10 . . 12 4 70 90 69 23 55 . 114 . 53 . . . 22 383 . Total Damage 50260 | . . . . . 276 16 . 936 688 22 . 1512 812 315 174 . . 397 2 1659 2083 2363 585 1305 . 3175 . 1031 . . . 1446 31463 . Kills 222 | . . . . . 2 . . 9 6 1 . 8 6 4 1 . . 3 . 8 14 11 2 7 . 23 . 5 . . . 3 109 . Allies Corrupted 9 | . . . . . . . . . . . . . . . . . . . . . . . . 1 1 . . . . . . . 7 . Allies Melted 1 | . . . . . . . . . . . . . . . . . . . . . . . . . . . . 1 . . . . . . Intel | -11 -10 -10 -10 -9 -8 -7 -7 -7 -7 -7 -7 -6 -6 -6 -6 -6 -5 -5 -5 -5 -5 -5 -5 -5 -4 -4 -4 -3 -2 -2 -2 -1 -1 -1 ------- Run | Scr Mat Min Exi Min Mat Fac Was Fac Low Low Zio Pro Fac Low Low Dat Pro Fac Was Fac Ext Cet Arc Hub Fac Arm Lab Res Res Qua Sec Acc Com Ac0 Robot Analysis Total . | . . . . . . . . . . . . . . . . . . . . . . . . . . . . . . . . . . . Derelict Logs Recovered 7 | . . 1 . 2 . . . . . 1 . 2 . 1 . . . . . . . . . . . . . . . . . . . . Drone Launches 8 | . . . . . . . . . . . . . 1 . . . . 3 . . . 1 . . . . . 1 . . . 2 . . Drone Recoveries 8 | . . . . . . . . . . . . . 1 . . . . 3 . . . 1 . . . . . 1 . . . 2 . . Zionite Intel Received 59 | . . . . . . . . . . . . . 1 . . . . 2 . 7 3 1 . 3 3 6 . 10 1 10 5 1 6 . Main Access 3 | . . . . . . . . . . . . . 1 . . . . . . 1 . . . . . . . 1 . . . . . . Branch Access 2 | . . . . . . . . . . . . . . . . . . . . . 1 . . . 1 . . . . . . . . . Emergency Access 4 | . . . . . . . . . . . . . . . . . . . . . . . . 1 1 1 . 1 . . . . . . Guard Positions 2 | . . . . . . . . . . . . . . . . . . . . . . . . . . . . 1 . . 1 . . . Component Stockpiles 3 | . . . . . . . . . . . . . . . . . . . . 1 . . . . . 1 . . . 1 . . . . Prototype Stockpiles 2 | . . . . . . . . . . . . . . . . . . . . . . . . 1 . . . . . . 1 . . . Component Schematics 3 | . . . . . . . . . . . . . . . . . . . . . . . . . . . . . . 1 1 . 1 . Prototype Schematics 5 | . . . . . . . . . . . . . . . . . . . . 1 . . . 1 . . . 1 . 1 . . 1 . Unaware Schematics 9 | . . . . . . . . . . . . . . . . . . . . 1 . 1 . . . 1 . 2 . 2 . . 2 . Unaware Analyses 8 | . . . . . . . . . . . . . . . . . . 1 . . . . . . . 2 . 1 . 2 1 . 1 . Trap Installations 5 | . . . . . . . . . . . . . . . . . . 1 . 1 . . . . . . . . 1 1 . 1 . . Active Terminals 4 | . . . . . . . . . . . . . . . . . . . . 1 1 . . . . . . 1 . 1 . . . . Active Garrisons 3 | . . . . . . . . . . . . . . . . . . . . 1 . . . . 1 . . 1 . . . . . . Depthwide Sectors/0 3 | . . . . . . . . . . . . . . . . . . . . . . . . . . 1 . . . 1 1 . . . Depthwide Sectors/-1 3 | . . . . . . . . . . . . . . . . . . . . . 1 . . . . . . 1 . . . . 1 . Exploration | -11 -10 -10 -10 -9 -8 -7 -7 -7 -7 -7 -7 -6 -6 -6 -6 -6 -5 -5 -5 -5 -5 -5 -5 -5 -4 -4 -4 -3 -2 -2 -2 -1 -1 -1 ------------- Run | Scr Mat Min Exi Min Mat Fac Was Fac Low Low Zio Pro Fac Low Low Dat Pro Fac Was Fac Ext Cet Arc Hub Fac Arm Lab Res Res Qua Sec Acc Com Ac0 Turns Passed 15995 | 153 163 76 723 817 509 541 103 205 394 89 857 536 698 155 136 163 101 520 16 601 245 242 564 310 337 1116 132 763 136 610 350 435 1456 1743 Spaces Moved 20553 | 83 316 117 480 448 248 883 196 249 467 254 1416 316 1180 359 256 158 254 804 60 1246 373 214 277 325 530 1326 193 1061 207 910 946 356 2033 2012 Core 611 | 32 316 117 78 . . 1 . . . . . . . . . . . . . . . . 49 . . . . . . . . . 18 . Treads 1149 | 51 . . 402 448 248 . . . . . . . . . . . . . . . . . . . . . . . . . . . . . Legs . | . . . . . . . . . . . . . . . . . . . . . . . . . . . . . . . . . . . Wheels . | . . . . . . . . . . . . . . . . . . . . . . . . . . . . . . . . . . . Hover 8704 | . . . . . . . . . . . . . . . . . . . . . . . . . . 1004 193 1061 207 910 946 356 2015 2012 Flight 10089 | . . . . . . 882 196 249 467 254 1416 316 1180 359 256 158 254 804 60 1246 373 214 228 325 530 322 . . . . . . . . Fastest Speed 27 | 50 50 50 50 180 160 34 34 34 34 34 34 34 34 34 34 34 34 27 27 27 27 27 27 27 27 32 48 43 43 35 27 28 28 36 Average Speed 46 | 117 50 50 147 180 175 49 36 34 34 34 34 34 34 34 34 34 34 31 27 27 27 27 154 27 29 45 48 44 43 41 28 29 38 40 Slowest Speed 750 | 160 50 50 180 180 180 300 50 34 34 34 34 34 34 34 34 34 34 34 27 27 27 27 750 27 34 220 48 48 44 44 35 109 700 48 Overloaded Moves 868 | . . . . . . . . . . . . . . . . . . . . . . . . . . 68 . . . . 606 . . 194 Propulsion Burnouts 1 | . . . . . . . . . . . . . . . . . . . . . . . . . . 1 . . . . . . . . Robots Hopped 46 | . . . . . . 3 . 3 2 1 . . 2 1 . . . . 2 13 11 . . 1 7 . . . . . . . . . Cave-ins Triggered . | . . . . . . . . . . . . . . . . . . . . . . . . . . . . . . . . . . . Teleports 2 | . . . . . . . . . . . . . . . . . . . . . . . . . . . . . . 1 . . 1 . Exploration Rate (%) 51 | 3 56 38 70 89 23 25 83 11 64 51 92 47 34 61 50 76 42 20 58 27 53 76 86 39 25 58 99 33 8 78 64 11 60 76 Regions Visited 34 Branch Regions 21 Pre-discovered Areas 22 | . 1 . 1 1 . . . . . . 2 . . . . 1 . . . . 5 . . . . 5 . 2 . 2 2 . . . Known Exits Taken 24 | . . . . . . . . 1 1 1 1 1 1 1 1 1 1 . . 1 1 1 1 1 1 1 1 1 1 1 1 1 1 . Unknown Exits Taken 6 | 1 1 1 1 1 1 . . . . . . . . . . . . . . . . . . . . . . . . . . . . . Scrap Searched 18 | . . 1 . 1 . . . . 3 2 3 3 . 3 2 . . . . . . . . . . . . . . . . . . . Spaces Dug 98 | . . . . . 2 17 . . 1 . 3 . 8 . 7 . 1 6 . 8 1 . . 2 8 8 . 11 1 4 . . . 10 Terrain Destroyed 353 | . . . . . 2 17 . . 1 . 3 . 8 . 7 . 1 6 . 8 22 . . 162 17 23 . 13 2 4 . . 1 56 Melee 86 | . . . . . . 17 . . 1 . 3 . 8 . . . 1 6 . 8 1 . . 2 8 7 . 10 1 4 . . . 9 Projectile 54 | . . . . . 2 . . . . . . . . . . . . . . . . . . . . 1 . 3 1 . . . . 47 AOE 213 | . . . . . . . . . . . . . . . 7 . . . . . 21 . . 160 9 15 . . . . . . 1 . Terrain Rammed . | . . . . . . . . . . . . . . . . . . . . . . . . . . . . . . . . . . . Walls Destroyed . | . . . . . . . . . . . . . . . . . . . . . . . . . . . . . . . . . . . Machines Disabled . | . . . . . . . . . . . . . . . . . . . . . . . . . . . . . . . . . . . Actions | -11 -10 -10 -10 -9 -8 -7 -7 -7 -7 -7 -7 -6 -6 -6 -6 -6 -5 -5 -5 -5 -5 -5 -5 -5 -4 -4 -4 -3 -2 -2 -2 -1 -1 -1 --------- Run | Scr Mat Min Exi Min Mat Fac Was Fac Low Low Zio Pro Fac Low Low Dat Pro Fac Was Fac Ext Cet Arc Hub Fac Arm Lab Res Res Qua Sec Acc Com Ac0 Total 26228 | 109 320 133 497 455 293 953 228 365 698 253 1787 737 1455 388 303 261 263 1053 57 1483 500 387 387 526 678 1787 216 1304 245 1096 1004 671 2622 2714 Wait 4244 | . . 17 2 . 1 18 23 118 224 . 354 408 257 30 44 75 . 228 . 224 132 162 86 175 112 346 . 181 23 116 24 292 407 165 Move 20441 | 82 315 116 479 447 247 877 195 243 462 251 1415 315 1175 356 255 157 253 804 56 1222 357 213 276 322 515 1325 192 1060 206 909 945 355 2032 2012 Hop 34 | . . . . . . 3 . 2 2 1 . . 2 1 . . . . 1 10 4 . . 1 7 . . . . . . . . . Pick Up 162 | 3 1 . 11 2 8 9 3 1 4 . 7 1 2 . 1 4 3 1 . 3 . 2 . 2 9 12 5 11 4 9 3 2 24 15 Fast Attach 93 | 7 1 . 1 . 4 3 2 . . . . . 2 . . . . 2 . . . . . . 5 9 4 2 2 3 9 1 16 20 Attach 106 | . . . 1 . 3 5 . . . . . . 1 . . 3 . 2 . . . 1 . 1 4 7 . 2 3 4 4 3 22 40 Detach 78 | 1 . . 1 . 2 . . . . . . . 1 . . 2 . . . 1 . . . . 2 3 2 1 2 4 1 1 17 37 Swap 115 | . . . 1 . 8 5 . 1 . . 1 6 3 . 1 4 2 4 . 1 2 3 2 7 3 15 1 7 . 15 6 3 5 9 Drop 173 | . 2 . 1 1 2 10 5 . 4 . 6 2 . . 1 6 2 2 . 4 . . . 1 5 24 2 4 . 11 3 6 33 36 Fire 392 | 16 . . . . 10 2 . . . . . . . . 1 . . . . . 1 1 16 12 2 16 . 9 2 5 2 . 23 274 Melee 359 | . . . . . . 21 . . 2 1 4 4 12 1 . 5 3 10 . 14 3 5 7 3 13 30 10 27 3 18 7 8 42 106 Ram . | . . . . . . . . . . . . . . . . . . . . . . . . . . . . . . . . . . . Kick . | . . . . . . . . . . . . . . . . . . . . . . . . . . . . . . . . . . . Crush 14 | . 1 . . 5 8 . . . . . . . . . . . . . . . . . . . . . . . . . . . . . Escape Stasis . | . . . . . . . . . . . . . . . . . . . . . . . . . . . . . . . . . . . Rewire 9 | . . . . . . . . . . . . . . . . . . . . 4 1 . . 2 1 . . . . . . . 1 . Trap 8 | . . . . . . . . . . . . 1 . . . 5 . . . . . . . . . . . . . 2 . . . . Miscellaneous . | . . . . . . . . . . . . . . . . . . . . . . . . . . . . . . . . . . . Route ------- -11/Scrapyard -10/Materials (discovered 2 exits: [*Mat] / [*Min]) -10/Mines (discovered 2 exits: [*Mat] / *Exi) -10/Exiles -9/Mines (discovered 2 exits: *Mat x2) -8/Materials -7/Factory (discovered 5 exits: Fac x4 / *Sto) -7/Waste -7/Factory (discovered 3 exits: Sto / *Low x2) -7/Lower Caves -7/Lower Caves -7/Zion (discovered 2 exits: [*Dee] / *Pro) -6/Proximity Caves -6/Factory (discovered 5 exits: Fac x4 / *Low) -6/Lower Caves -6/Lower Caves (discovered 2 exits: *Fac / *Dat) -6/Data Miner -5/Proximity Caves -5/Factory -5/Waste -5/Factory (discovered 5 exits: Fac x4 / *Ext) -5/Extension (discovered 3 exits: *Fac x2 / *Cet) -5/Cetus (discovered 3 exits: *Fac x2 / *Arc) -5/Archives (discovered 3 exits: *Fac / *Hub x2) -5/Hub_04(d) (discovered 4 exits: *Fac x4) -4/Factory (discovered 4 exits: *Res / Upp x2 / *Arm) -4/Armory -4/Lab -3/Research (discovered 3 exits: *Res x3) -2/Research -2/Quarantine (discovered 2 exits: *Acc / *Sec) -2/Section 7 -1/Access -1/Command -1/Access_0 Subspace History --------- Turn | Location | Event 5 | -11/Scrapyard | Discovered new exit (range 14) 154 | -11/Scrapyard | Entered Materials 265 | -10/Materials | Discovered new exit (range 13) 300 | -10/Materials | Discovered new exit (range 8) 317 | -10/Materials | Entered Mines 327 | -10/Mines | Build established: Mutant 331 | -10/Mines | Learned Materials stockpile data 331 | -10/Mines | Discovered new exit (range 6) 355 | -10/Mines | Assisted by bots powering up and referring to "LRC-V3" 369 | -10/Mines | Deemed a non-threat by the Exiles lab entrance 373 | -10/Mines | Discovered new exit (range 5) 393 | -10/Mines | Entered Exiles 393 | -10/Exiles | Accompanied by 3 allies 406 | -10/Exiles | Met 8R-AWN 414 | -10/Exiles | Met EX-HEX 644 | -10/Exiles | Met EX-DEC 673 | -10/Exiles | Learned location of Zion (-7) 821 | -10/Exiles | Met EX-BIN 840 | -10/Exiles | Aligned with FarCom system 841 | -10/Exiles | Given EX-Vault access code 883 | -10/Exiles | Opened EX-Vault 895 | -10/Exiles | Found Lightpack 2.0 903 | -10/Exiles | Found Flying Fortress v7 907 | -10/Exiles | Found PSU Rigger 946 | -10/Exiles | Warned to stay clear of 0b10 Research branches 1094 | -10/Exiles | Discovered new exit (range 10) 1116 | -10/Exiles | Stole three prototypes: Flying Fortress v7, Lightpack 2.0, PSU Rigger 1116 | -10/Exiles | Entered Mines 1116 | -9/Mines | Accompanied by 3 allies 1122 | -9/Mines | Met a Derelict bent on vengeance 1226 | -9/Mines | Learned location of 1 exit from Proximity Caves 1264 | -9/Mines | Discovered new exit (range 8) 1341 | -9/Mines | Discovered new exit (range 3) 1581 | -9/Mines | Found a damaged Exp. Sensor Array with a note attached 1584 | -9/Mines | Found Prototype Device 1609 | -9/Mines | Learned location of Storage (-7) 1612 | -9/Mines | Received a Rocket Launcher from a helpful Derelict 1933 | -9/Mines | Entered Materials 1933 | -8/Materials | Accompanied by 3 allies 1933 | -8/Materials | Evolved 4 slots: Propulsion x2, Utility x2 2213 | -8/Materials | Discovered new exit (range 7) 2364 | -8/Materials | Identified Exp. Sensor Array 2375 | -8/Materials | Build established: Hauler-Mutant 2442 | -8/Materials | Entered Factory 2442 | -7/Factory | Accompanied by 2 allies 2442 | -7/Factory | Evolved 2 slots: Propulsion x2 2444 | -7/Factory | FarCom data flow suspended 2686 | -7/Factory | Discovered new exit (range 8) 2739 | -7/Factory | Identified exit to Factory 2983 | -7/Factory | Sucked down chute 2983 | -7/Factory | Entered Waste 2984 | -7/Waste | Joined by Warlord forces that had cleared the area 3032 | -7/Waste | Discovered new exit (range 13) 3062 | -7/Waste | Identified exit to Factory 3086 | -7/Waste | Entered Factory 3086 | -7/Factory | Accompanied by 20 allies 3098 | -7/Factory | Identified exit to Storage 3098 | -7/Factory | Identified exit to Lower Caves 3291 | -7/Factory | Entered Lower Caves 3291 | -7/Lower Caves | Accompanied by 16 allies 3376 | -7/Lower Caves | Encountered a Warlord checkpoint 3400 | -7/Lower Caves | Spotted B-75 Beast 3606 | -7/Lower Caves | Allies destroyed B-75 Beast 3651 | -7/Lower Caves | Discovered new exit (range 10) 3658 | -7/Lower Caves | Identified exit to Lower Caves 3663 | -7/Lower Caves | Build established: Trapper-Mutant 3685 | -7/Lower Caves | Entered another Lower Caves area 3685 | -7/Lower Caves | Accompanied by 8 allies 3760 | -7/Lower Caves | Learned Factory terminal intel 3770 | -7/Lower Caves | Discovered new exit (range 14) 3773 | -7/Lower Caves | Identified exit to Zion 3774 | -7/Lower Caves | Entered Zion 3792 | -7/Zion | Found CR-A16's Pointy Stick 3817 | -7/Zion | Discovered new exit (range 12) 3827 | -7/Zion | Given the Hacking Drone Bay 3839 | -7/Zion | Found Prototype Device 3860 | -7/Zion | Found Prototype Device 3919 | -7/Zion | Acquired unknown access codes intercepted by a Zionite 3992 | -7/Zion | Gained Derelict followers 4054 | -7/Zion | Gained Derelict followers 4079 | -7/Zion | Learned location of Warlord (-5) 4283 | -7/Zion | Discovered new exit (range 4) 4285 | -7/Zion | Saw the warning signs outside the Deep Caves entrance 4349 | -7/Zion | Imprinted 4351 | -7/Zion | Declared Zion's savior 4490 | -7/Zion | Identified exit to Proximity Caves 4631 | -7/Zion | Entered Proximity Caves 4631 | -6/Proximity Caves | Accompanied by 12 allies 4834 | -6/Proximity Caves | Received a Behemoth hack from an annoying Tinkerer 5053 | -6/Proximity Caves | Attracted the attention of an 0b10 outpost 5127 | -6/Proximity Caves | Learned Factory trap positions 5152 | -6/Proximity Caves | Spotted B-75 Beast 5154 | -6/Proximity Caves | Revealed the true nature of CR-A16's Pointy Stick 5157 | -6/Proximity Caves | Destroyed B-75 Beast 5165 | -6/Proximity Caves | Learned Factory emergency access door positions 5167 | -6/Proximity Caves | Entered Factory 5167 | -6/Factory | Evolved 2 slots: Utility x2 5167 | -6/Factory | Identified Hacking Drone Bay 5168 | -6/Factory | Loaded intel: 91 trap records 5170 | -6/Factory | Loaded intel: 20 terminal locations 5266 | -6/Factory | Retrieved Zion intel report: Main Access 5266 | -6/Factory | Identified exit to Factory 5267 | -6/Factory | Zion Light squad teleported in 5273 | -6/Factory | Zion Recon squad teleported in 5286 | -6/Factory | Found Prototype Processor 5720 | -6/Factory | Zion Heavy Resupply teleported in 5794 | -6/Factory | Discovered new exit (range 15) 5801 | -6/Factory | Identified exit to Lower Caves 5865 | -6/Factory | Entered Lower Caves 5865 | -6/Lower Caves | Accompanied by 4 allies 5866 | -6/Lower Caves | Encountered a Warlord checkpoint 5922 | -6/Lower Caves | Learned Factory terminal intel 6007 | -6/Lower Caves | Discovered new exit (range 9) 6009 | -6/Lower Caves | Identified exit to Lower Caves 6020 | -6/Lower Caves | Entered another Lower Caves area 6020 | -6/Lower Caves | Accompanied by 3 allies 6021 | -6/Lower Caves | Encountered a Warlord checkpoint 6025 | -6/Lower Caves | Discovered exit to Factory (range 8) 6080 | -6/Lower Caves | Attracted the attention of an 0b10 outpost 6142 | -6/Lower Caves | Discovered new exit (range 14) 6156 | -6/Lower Caves | Identified exit to Data Miner 6156 | -6/Lower Caves | Entered Data Miner 6156 | -6/Data Miner | Discovered new exit (range 6) 6163 | -6/Data Miner | Met Data Miner 6170 | -6/Data Miner | Learned location of Section 7 (-2) 6170 | -6/Data Miner | Acquired the access code to Warlord's prototype stash 6175 | -6/Data Miner | Received God Mode back door access code from Data Miner 6190 | -6/Data Miner | Identified Bomb Factory No. 2 6266 | -6/Data Miner | Destroyed Data Miner 6268 | -6/Data Miner | Found Prototype Hackware 6269 | -6/Data Miner | Data Conduit disabled 6270 | -6/Data Miner | Found Prototype Hackware 6271 | -6/Data Miner | Found Prototype Hackware 6315 | -6/Data Miner | Identified exit to Proximity Caves 6319 | -6/Data Miner | Entered Proximity Caves 6416 | -5/Proximity Caves | Spotted 3K-C01(f) 6417 | -5/Proximity Caves | Encountered a Master Thief 6418 | -5/Proximity Caves | Discovered exit to Factory (range 8) 6420 | -5/Proximity Caves | Entered Factory 6420 | -5/Factory | Evolved 2 slots: Power x1, Utility x1 6421 | -5/Factory | Loaded intel: 21 terminal locations 6451 | -5/Factory | Identified System Mapper 6451 | -5/Factory | Identified Deep Network Scanner 6489 | -5/Factory | Build established: Hauler-Mutant 6505 | -5/Factory | Retrieved Zion intel report: Trap Installations 6506 | -5/Factory | Zion Hacker squad teleported in 6534 | -5/Factory | Retrieved Zion intel report: Unaware Analyses 6603 | -5/Factory | Discovered new exit (range 8) 6605 | -5/Factory | Identified exit to Factory 6632 | -5/Factory | Identified Quantum Router 6718 | -5/Factory | Fabricated Exp. Cesium-ion Thruster (x1) 6803 | -5/Factory | Fabricated Exp. Cesium-ion Thruster (x1) 6940 | -5/Factory | Sucked down chute 6940 | -5/Factory | Entered Waste 6941 | -5/Waste | Met a frightened Derelict 6945 | -5/Waste | Spotted C-40 Crusher 6945 | -5/Waste | Spotted C-40 Crusher 6946 | -5/Waste | Spotted C-40 Crusher 6949 | -5/Waste | Spotted C-40 Crusher 6950 | -5/Waste | 2 allies followed down the chute 6952 | -5/Waste | Discovered new exit (range 14) 6956 | -5/Waste | Identified exit to Factory 6956 | -5/Waste | Entered Factory 6978 | -5/Factory | Identified Exp. Signal Interpreter 6992 | -5/Factory | Zion hero teleported in (ME-RLN) 7013 | -5/Factory | Build established: Hacker-Sprinter 7045 | -5/Factory | Allied Derelicts emerged from ambush trap array 7224 | -5/Factory | Retrieved Zion intel report: Main Access 7272 | -5/Factory | Retrieved Zion intel report: Active Garrisons 7293 | -5/Factory | Retrieved Zion intel report: Component Stockpiles 7372 | -5/Factory | ME-RLN assimilated hostile Y-64 Sentinel 7377 | -5/Factory | Retrieved Zion intel report: Active Terminals 7403 | -5/Factory | Retrieved Zion intel report: Trap Installations 7429 | -5/Factory | ME-RLN assimilated hostile G-50 Soldier 7519 | -5/Factory | Discovered new exit (range 16) 7521 | -5/Factory | Retrieved Zion intel report: Unaware Schematics 7528 | -5/Factory | Retrieved Zion intel report: Prototype Schematics 7548 | -5/Factory | Identified exit to Extension 7557 | -5/Factory | Entered Extension 7557 | -5/Extension | Accompanied by 1 ally (ME-RLN) 7577 | -5/Extension | Energy Cycler disabled 7577 | -5/Extension | Rescued a captive Derelict 7578 | -5/Extension | Rescued a captive Derelict 7578 | -5/Extension | Rescued a captive Derelict 7580 | -5/Extension | Rescued a captive Derelict 7581 | -5/Extension | Rescued a captive Derelict 7587 | -5/Extension | ME-RLN assimilated hostile G-50 Soldier 7587 | -5/Extension | Rescued a captive Derelict 7588 | -5/Extension | Rescued a captive Derelict 7592 | -5/Extension | Rescued a captive Derelict 7594 | -5/Extension | ME-RLN assimilated hostile B-60 Warrior 7595 | -5/Extension | Rescued a captive Derelict 7604 | -5/Extension | Zion Light squad teleported in 7613 | -5/Extension | Zion Fire squad teleported in 7614 | -5/Extension | Zion Fire squad teleported in 7621 | -5/Extension | Retrieved Zion intel report: Depthwide Sectors/-1 7624 | -5/Extension | Retrieved Zion intel report: Active Terminals 7627 | -5/Extension | Rescued A7 7658 | -5/Extension | Spotted B-75 Beast 7658 | -5/Extension | Spotted B-75 Beast 7659 | -5/Extension | Destroyed B-75 Beast 7667 | -5/Extension | Discovered exit to Factory (range 15) 7669 | -5/Extension | Allies destroyed B-75 Beast 7670 | -5/Extension | Retrieved Zion intel report: Branch Access 7670 | -5/Extension | Identified exit to Cetus 7687 | -5/Extension | ME-RLN assimilated hostile G-50 Soldier 7689 | -5/Extension | ME-RLN assimilated hostile G-50 Soldier 7765 | -5/Extension | Discovered exit to Factory (range 15) 7802 | -5/Extension | Entered Cetus 7802 | -5/Cetus | Accompanied by 13 allies (incl. ME-RLN, A7) 7807 | -5/Cetus | Acquired a Cetus Manufacturing Module code from A7 7816 | -5/Cetus | Spotted Cetus Guard 7816 | -5/Cetus | Spotted Cetus Guard 7816 | -5/Cetus | Spotted Cetus Guard 7820 | -5/Cetus | Spotted Cetus Guard 7824 | -5/Cetus | Allies destroyed Cetus Guard 7824 | -5/Cetus | Allies destroyed Cetus Guard 7826 | -5/Cetus | Allies destroyed Cetus Guard 7829 | -5/Cetus | Allies destroyed Cetus Guard 7850 | -5/Cetus | Identified exit to Archives 7861 | -5/Cetus | Started Cetus Manufacturing Module 7864 | -5/Cetus | Zion Hacker squad teleported in 7886 | -5/Cetus | Manufactured an Enhanced Grunt 7901 | -5/Cetus | Retrieved Zion intel report: Unaware Schematics 7911 | -5/Cetus | Manufactured an Enhanced Grunt 7936 | -5/Cetus | Manufactured an Enhanced Grunt 7961 | -5/Cetus | Manufactured an Enhanced Grunt 7973 | -5/Cetus | Spotted Cetus Guard 7974 | -5/Cetus | Spotted Cetus Guard 7974 | -5/Cetus | Spotted Cetus Guard 7974 | -5/Cetus | Spotted Cetus Guard 7982 | -5/Cetus | Allies destroyed Cetus Guard 7982 | -5/Cetus | Allies destroyed Cetus Guard 7985 | -5/Cetus | Allies destroyed Cetus Guard 7986 | -5/Cetus | Manufactured an Enhanced Grunt 7987 | -5/Cetus | Allies destroyed Cetus Guard 7999 | -5/Cetus | Destroyed A7 8000 | -5/Cetus | Extracted ID and sensor layout for unrecognized location from A7's data core 8005 | -5/Cetus | Scared off Revision 17 8044 | -5/Cetus | Entered Archives 8044 | -5/Archives | Accompanied by 11 allies (ME-RLN) 8060 | -5/Archives | Discovered new exit (range 16) 8066 | -5/Archives | ME-RLN assimilated hostile Y-72 Warden 8071 | -5/Archives | Discovered new exit (range 16) 8381 | -5/Archives | Build established: Hacker-Mutant 8456 | -5/Archives | Identified exit to Hub_04(d) 8492 | -5/Archives | Discovered exit to Factory (range 15) 8608 | -5/Archives | Entered Hub_04(d) 8608 | -5/Hub_04(d) | Accompanied by 9 allies (ME-RLN) 8621 | -5/Hub_04(d) | Retrieved Zion intel report: Prototype Schematics 8639 | -5/Hub_04(d) | Retrieved Zion intel report: Prototype Stockpiles 8646 | -5/Hub_04(d) | Retrieved Zion intel report: Emergency Access 8647 | -5/Hub_04(d) | Discovered exit to Factory (range 16) 8648 | -5/Hub_04(d) | Discovered exit to Factory (range 13) 8674 | -5/Hub_04(d) | Garrison activated, responded to threat 8698 | -5/Hub_04(d) | Discovered exit to Factory (range 16) 8740 | -5/Hub_04(d) | Build established: Hacker-Sprinter 8758 | -5/Hub_04(d) | Spotted B-75 Beast 8769 | -5/Hub_04(d) | Allies destroyed B-75 Beast 8780 | -5/Hub_04(d) | ME-RLN assimilated hostile G-50 Soldier 8781 | -5/Hub_04(d) | ME-RLN assimilated hostile G-50 Soldier 8791 | -5/Hub_04(d) | Discovered exit to Factory (range 16) 8802 | -5/Hub_04(d) | Network Hub disabled 8908 | -5/Hub_04(d) | First assault squad dispatched 8915 | -5/Hub_04(d) | Spotted Lightning 8915 | -5/Hub_04(d) | Spotted Lightning 8918 | -5/Hub_04(d) | ME-RLN assimilated hostile I-47 Archangel 8918 | -5/Hub_04(d) | Entered Factory 8918 | -4/Factory | Accompanied by 5 allies (ME-RLN) 8918 | -4/Factory | Evolved 2 slots: Utility x2 9001 | -4/Factory | Found Ghost Barrier 9006 | -4/Factory | Found System Mapper 9007 | -4/Factory | Found ME-RLN's Chromatic Screen 9109 | -4/Factory | Spotted B-86 Titan 9109 | -4/Factory | Retrieved Zion intel report: Branch Access 9109 | -4/Factory | Identified exit to Upper Caves 9109 | -4/Factory | Identified exit to Armory 9118 | -4/Factory | Destroyed B-86 Titan 9147 | -4/Factory | Retrieved Zion intel report: Active Garrisons 9191 | -4/Factory | Retrieved Zion intel report: Emergency Access 9205 | -4/Factory | Spotted B-86 Titan 9208 | -4/Factory | Discovered new exit (range 15) 9210 | -4/Factory | Destroyed B-86 Titan 9255 | -4/Factory | Entered Armory 9285 | -4/Armory | Retrieved Zion intel report: Unaware Schematics 9368 | -4/Armory | Fabricated Cmb. Antigrav System? 9384 | -4/Armory | Fabricated P-70 Sage? 9444 | -4/Armory | Retrieved Zion intel report: Emergency Access 9446 | -4/Armory | Fabricated Cmb. Antigrav System? 9453 | -4/Armory | Retrieved Zion intel report: Depthwide Sectors/0 9713 | -4/Armory | Build established: Hacker-Mutant 10020 | -4/Armory | Fabricated P-70 Sage (x2) 10049 | -4/Armory | Fabricated P-70 Sage (x2) 10062 | -4/Armory | Fabricated P-70 Sage? 10170 | -4/Armory | Retrieved Zion intel report: Unaware Analyses 10200 | -4/Armory | Retrieved Zion intel report: Component Stockpiles 10327 | -4/Armory | Retrieved Zion intel report: Unaware Analyses 10370 | -4/Armory | Discovered new exit (range 3) 10371 | -4/Armory | Identified exit to Lab 10371 | -4/Armory | Entered Lab 10371 | -4/Lab | Discovered new exit (range 9) 10375 | -4/Lab | Identified exit to Research 10377 | -4/Lab | Hidden lab's door opened automatically 10377 | -4/Lab | Sensor layout match revealed 10378 | -4/Lab | Gained access to the hidden lab's interior 10410 | -4/Lab | Found Prototype Special Weapon 10427 | -4/Lab | Found Alien Artifact 10427 | -4/Lab | Identified Integrated Reactor 10427 | -4/Lab | Installed Integrated Reactor, increased core energy generation (+10) 10437 | -4/Lab | Found Deep Network Scanner 10439 | -4/Lab | Found Prototype Protection 10439 | -4/Lab | Identified Med. Regenerative Plating 10443 | -4/Lab | Found Prototype Energy Gun 10443 | -4/Lab | Identified Hyp. EM Gauss Rifle 10446 | -4/Lab | Found Prototype Energy Cannon 10446 | -4/Lab | Identified Warp Cannon 10459 | -4/Lab | Found Alien Artifact 10469 | -4/Lab | Found Alien Artifact 10495 | -4/Lab | Found Alien Artifact 10503 | -4/Lab | Entered Research 10503 | -3/Research | Evolved 2 slots: Utility x2 10535 | -3/Research | Retrieved Zion intel report: Active Terminals 10551 | -3/Research | Retrieved Zion intel report: Emergency Access 10634 | -3/Research | Fabricated P-70 Sage (x2) 10641 | -3/Research | Spotted B-86 Titan 10724 | -3/Research | Retrieved Zion intel report: Unaware Schematics 10762 | -3/Research | Identified Transdimensional Reconstructor 10762 | -3/Research | Identified Core Regenerator 10762 | -3/Research | Identified Core Reset Matrix 10762 | -3/Research | Identified Gui. Remote Datajack 10806 | -3/Research | Retrieved Zion intel report: Guard Positions 10833 | -3/Research | Retrieved Zion intel report: Depthwide Sectors/-1 10852 | -3/Research | Retrieved Zion intel report: Prototype Schematics 10922 | -3/Research | Retrieved Zion intel report: Active Garrisons 10962 | -3/Research | Fabricated B-74 Champion? 10968 | -3/Research | Repaired Broken Cmb. Linear Gravjet 11065 | -3/Research | Fabricated B-74 Champion (x3) 11201 | -3/Research | Retrieved Zion intel report: Unaware Analyses 11205 | -3/Research | Found Exp. Shield Generator 11211 | -3/Research | Retrieved Zion intel report: Unaware Schematics 11245 | -3/Research | Retrieved Zion intel report: Main Access 11245 | -3/Research | Identified exit to Research 11266 | -3/Research | Entered another Research area 11266 | -2/Research | Evolved 2 slots: Utility x2 11275 | -2/Research | Zion Zionite Resupply teleported in 11277 | -2/Research | Found Prototype Energy Cannon 11277 | -2/Research | Identified Zio. Alpha Cannon 11376 | -2/Research | Retrieved Zion intel report: Trap Installations 11377 | -2/Research | Zion Melee Resupply teleported in 11377 | -2/Research | Discovered new exit (range 7) 11379 | -2/Research | Found Prototype Slashing Weapon 11381 | -2/Research | Found Adv. Force Booster 11386 | -2/Research | Identified exit to Quarantine 11402 | -2/Research | Entered Quarantine 11414 | -2/Quarantine | Found Alien Artifact 11426 | -2/Quarantine | Identified Centrium Greatsword 11426 | -2/Quarantine | Identified Stasis Generator 11493 | -2/Quarantine | Found Alien Artifact 11567 | -2/Quarantine | Retrieved Zion intel report: Trap Installations 11585 | -2/Quarantine | Retrieved Zion intel report: Unaware Analyses 11628 | -2/Quarantine | Identified Subatomic Replicator 11628 | -2/Quarantine | Used Core Reset Matrix 11632 | -2/Quarantine | Detected hypermatrix surge 11632 | -2/Quarantine | Sensed 16 artifacts in vicinity 11646 | -2/Quarantine | Found Phase Armor 11682 | -2/Quarantine | Cryocooling Duct disabled 11691 | -2/Quarantine | Discovered new exit (range 13) 11697 | -2/Quarantine | Ambient heat levels rising (+20) 11697 | -2/Quarantine | Non-combat units ordered to evacuate 11700 | -2/Quarantine | Found Sigix Broadsword 11709 | -2/Quarantine | Retrieved Zion intel report: Component Schematics 11716 | -2/Quarantine | Retrieved Zion intel report: Unaware Schematics 11716 | -2/Quarantine | Found Transdimensional Reconstructor 11721 | -2/Quarantine | Found Transdimensional Reconstructor 11722 | -2/Quarantine | Found Transdimensional Reconstructor 11737 | -2/Quarantine | Cryocooling Duct disabled 11749 | -2/Quarantine | Found Matter Drive 11752 | -2/Quarantine | Ambient heat levels rising (+20) 11752 | -2/Quarantine | Combat units ordered to evacuate 11772 | -2/Quarantine | Found Transdimensional Reconstructor 11792 | -2/Quarantine | Retrieved Zion intel report: Unaware Analyses 11803 | -2/Quarantine | Warped through subspace 11844 | -2/Quarantine | Retrieved Zion intel report: Unaware Schematics 11852 | -2/Quarantine | Quarantine Guard activated 11861 | -2/Quarantine | Retrieved Zion intel report: Component Stockpiles 11862 | -2/Quarantine | Retrieved Zion intel report: Depthwide Sectors/0 11899 | -2/Quarantine | Retrieved Zion intel report: Active Terminals 11908 | -2/Quarantine | Found Sigix Terminator 11918 | -2/Quarantine | Retrieved Zion intel report: Prototype Schematics 11928 | -2/Quarantine | Build established: Hauler-Mutant 11951 | -2/Quarantine | Spotted Quarantine Guard 11983 | -2/Quarantine | Spotted Fortress 11999 | -2/Quarantine | Spotted Quarantine Guard 12008 | -2/Quarantine | Discovered new exit (range 5) 12009 | -2/Quarantine | Identified exit to Section 7 12012 | -2/Quarantine | Entered Section 7 12013 | -2/Section 7 | Sensed 21 artifacts in vicinity 12041 | -2/Section 7 | Spotted S7 Guard 12051 | -2/Section 7 | Used Subatomic Replicator to replicate Integrated Singularity Reactor 12052 | -2/Section 7 | Found Integrated Singularity Reactor 12052 | -2/Section 7 | Installed Integrated Singularity Reactor, increased core energy generation (+20) 12054 | -2/Section 7 | Installed Integrated Singularity Reactor, increased core energy generation (+20) 12114 | -2/Section 7 | Found Integrated Dissipator 12114 | -2/Section 7 | Installed Integrated Dissipator, increased core heat dissipation (+20) 12140 | -2/Section 7 | Retrieved Zion intel report: Component Schematics 12153 | -2/Section 7 | Found Integrated Dissipator 12153 | -2/Section 7 | Installed Integrated Dissipator, increased core heat dissipation (+20) 12159 | -2/Section 7 | Retrieved Zion intel report: Depthwide Sectors/0 12180 | -2/Section 7 | Retrieved Zion intel report: Unaware Analyses 12185 | -2/Section 7 | Found Matter Drive 12188 | -2/Section 7 | Found Transdimensional Reconstructor 12202 | -2/Section 7 | Spotted B-99 Colossus 12219 | -2/Section 7 | Retrieved Zion intel report: Prototype Stockpiles 12224 | -2/Section 7 | Found LRC Energy Well 12224 | -2/Section 7 | Installed LRC Energy Well, increased energy storage capacity (+250) 12227 | -2/Section 7 | Found LRC Matter Compressor 12227 | -2/Section 7 | Installed LRC Matter Compressor, increased matter storage capacity (+125) 12229 | -2/Section 7 | Found LRC Boosters 12229 | -2/Section 7 | Installed LRC Boosters, increased mass support (+10) 12257 | -2/Section 7 | Retrieved Zion intel report: Guard Positions 12257 | -2/Section 7 | Used Core Regenerator, restored core integrity (+95) 12267 | -2/Section 7 | Spotted Executioner 12267 | -2/Section 7 | Spotted Executioner 12334 | -2/Section 7 | Discovered new exit (range 8) 12350 | -2/Section 7 | Build established: Alien-Sprinter 12362 | -2/Section 7 | Identified exit to Access 12362 | -2/Section 7 | Entered Access 12362 | -1/Access | Evolved 2 slots: Utility x2 12471 | -1/Access | Retrieved Zion intel report: Trap Installations 12472 | -1/Access | Zion Light squad teleported in 12502 | -1/Access | Zion Experimental squad teleported in 12524 | -1/Access | Zion Heavy squad teleported in 12529 | -1/Access | Zion Zionite Resupply teleported in 12533 | -1/Access | Discovered new exit (range 3) 12533 | -1/Access | Identified exit to Command 12776 | -1/Access | Zion Heavy squad teleported in 12797 | -1/Access | Entered Command 12797 | -1/Command | Accompanied by 9 allies 12811 | -1/Command | Retrieved Zion intel report: Component Schematics 12838 | -1/Command | Retrieved Zion intel report: Unaware Schematics 12856 | -1/Command | Spotted B-99 Colossus 12864 | -1/Command | Destroyed B-99 Colossus 12876 | -1/Command | Disengaged cave seal 12876 | -1/Command | Zionites emerged from the dark tunnel 12891 | -1/Command | Spotted M Guard 12892 | -1/Command | Spotted M Guard 12892 | -1/Command | Spotted Combat Programmer 12892 | -1/Command | Spotted Combat Programmer 12904 | -1/Command | Combat Programmer assimilated allied 45-H2I(z) 12924 | -1/Command | Allies destroyed Combat Programmer 12930 | -1/Command | Destroyed M Guard 12932 | -1/Command | P-80 Master assimilated allied 4N-2UC(M) 12937 | -1/Command | Allies destroyed M Guard 12939 | -1/Command | Allies destroyed Combat Programmer 12939 | -1/Command | All MAIN.C guards destroyed 12942 | -1/Command | Found Prototype Protection 12942 | -1/Command | Identified Zio. Weapon Casing 12944 | -1/Command | Found Zio. Weapon Casing 13047 | -1/Command | First assault squad dispatched 13090 | -1/Command | Retrieved Zion intel report: Depthwide Sectors/-1 13105 | -1/Command | Found Zio. Weapon Casing 13109 | -1/Command | Found Zio. Weapon Casing 13111 | -1/Command | Zionites emerged from the dark tunnel 13175 | -1/Command | Spotted B-99 Colossus 13177 | -1/Command | Retrieved Zion intel report: Unaware Schematics 13191 | -1/Command | Disengaged cave seal 13214 | -1/Command | Destroyed B-99 Colossus 13221 | -1/Command | Found Unknown Protection 13221 | -1/Command | Identified Hvy. Reflective Plating 13336 | -1/Command | Found Prototype Protection 13336 | -1/Command | Identified Zio. Shade Armor 13342 | -1/Command | Found Zio. Shade Armor 13346 | -1/Command | Found Zio. Shade Armor 13371 | -1/Command | Retrieved Zion intel report: Prototype Schematics 13459 | -1/Command | Met MAIN.C 13466 | -1/Command | Allies destroyed MAIN.C Shell 13544 | -1/Command | Found Prototype Protection 13544 | -1/Command | Identified Centrium Heavy Armor Plating 13621 | -1/Command | Retrieved Zion intel report: Unaware Analyses 13894 | -1/Command | High security lockdown imminent 13910 | -1/Command | Build established: Alien-Mutant 13914 | -1/Command | Found Prototype Reactor 13914 | -1/Command | Identified Vortex Chain Reactor 13918 | -1/Command | Found Vortex Chain Reactor 13919 | -1/Command | Found Prototype Device 13919 | -1/Command | Identified System Purifier 13923 | -1/Command | Found Prototype Device 13923 | -1/Command | Identified Exp. Hardlight Generator 13925 | -1/Command | Found Prototype Device 13925 | -1/Command | Identified Beam Splitter 13928 | -1/Command | Found Exp. ECM Suite 13931 | -1/Command | Found Prototype Ballistic Gun 13931 | -1/Command | Identified Hyp. Multirail 13935 | -1/Command | Found Hyp. Multirail 13946 | -1/Command | Found Vortex Chain Reactor 13947 | -1/Command | Warped through subspace to slip node 13947 | -1/Command | Discovered new exit (range 5) 13974 | -1/Command | High security lockdown engaged 14174 | -1/Command | Identified exit to Access_0 14253 | -1/Command | Entered Access_0 14254 | -1/Access_0 | Sensed 3 artifacts in vicinity 14254 | -1/Access_0 | Met Architect 14333 | -1/Access_0 | Architect warped through subspace 14350 | -1/Access_0 | Destroyed A8 14355 | -1/Access_0 | Found Exp. Weapon Cycler 14360 | -1/Access_0 | Found Prototype Processor 14371 | -1/Access_0 | Destroyed 8 combat bots 14375 | -1/Access_0 | Subspace Access Node disabled 14389 | -1/Access_0 | Found Prototype Device 14389 | -1/Access_0 | Identified Exp. Phase Shifter 14408 | -1/Access_0 | Architect warped through subspace 14418 | -1/Access_0 | Found Exp. Shield Generator 14421 | -1/Access_0 | Found Prototype Processor 14421 | -1/Access_0 | Identified Exp. Target Analyzer 14424 | -1/Access_0 | Found Prototype Processor 14424 | -1/Access_0 | Identified Exp. Signal Interpreter 14428 | -1/Access_0 | Found Exp. Shield Generator 14467 | -1/Access_0 | Architect warped through subspace 14520 | -1/Access_0 | Architect warped through subspace 14522 | -1/Access_0 | Found Modified Quantum Sheargun 14537 | -1/Access_0 | A6 warped into view 14643 | -1/Access_0 | Destroyed A6 14669 | -1/Access_0 | Architect warped through subspace 14672 | -1/Access_0 | Found Prototype Protection 14672 | -1/Access_0 | Identified Med. Regenerative Plating 14674 | -1/Access_0 | Found Prototype Protection 14674 | -1/Access_0 | Identified Centrium Linked Plating 14679 | -1/Access_0 | Found Prototype Device 14679 | -1/Access_0 | Identified Femtoactuators 14685 | -1/Access_0 | Found Unknown Piercing Weapon 14689 | -1/Access_0 | Found Prototype Processor 14689 | -1/Access_0 | Identified Exp. Melee Analysis Suite 14703 | -1/Access_0 | Architect warped through subspace 14742 | -1/Access_0 | Architect warped through subspace 14764 | -1/Access_0 | Subspace Access Node disabled 14775 | -1/Access_0 | Architect warped through subspace 14813 | -1/Access_0 | Architect warped through subspace 14833 | -1/Access_0 | Architect warped through subspace 14844 | -1/Access_0 | Subspace Access Node disabled 14856 | -1/Access_0 | Architect warped through subspace 14870 | -1/Access_0 | A5 warped into view 14873 | -1/Access_0 | Architect warped through subspace 14874 | -1/Access_0 | Found Centrium Linked Plating 14884 | -1/Access_0 | Architect warped through subspace 14892 | -1/Access_0 | Subspace Access Node disabled 15069 | -1/Access_0 | Found Exp. Phase Shifter 15072 | -1/Access_0 | Identified Exp. Targeting Computer 15091 | -1/Access_0 | Found Centrium Linked Plating 15209 | -1/Access_0 | Destroyed A5 15311 | -1/Access_0 | Found Integrity Redistributor 15489 | -1/Access_0 | Destroyed A2 15492 | -1/Access_0 | Extracted Singularity Gate Test 138-C access codes from A2's data core 15494 | -1/Access_0 | Build established: Alien-Gladiator 15516 | -1/Access_0 | A4 warped into view 15576 | -1/Access_0 | Destroyed A4 15653 | -1/Access_0 | Terminal network hard line cut 15710 | -1/Access_0 | Found Hpw. Transdimensional Reconstructor 15857 | -1/Access_0 | A3 warped into view 15914 | -1/Access_0 | Destroyed A3 15916 | -1/Access_0 | Found Prototype Ballistic Gun 15916 | -1/Access_0 | Identified A3's Sniper Rifle 15996 | -1/Access_0 | Started Test 138-B, establishing a local singularity 15996 | -1/Access_0 | Started Test 138-C, cascade imminent 15996 | *** | Destroyed Tau Ceti IV! Last Messages --------------- 15916_ Acquired Prototype Ballistic Gun. 15916_ Identified A3's Sniper Rifle. 15923_ Acquired 20 matter. 15934_ H GHE=ML8WBJ5KTM,PQICKVFCEG2BY9JK 15996_ Connecting with Gate Controls... >>Gate Test 138-A Running Singularity Gate diagnostics... All systems nominal. >>Gate Test 138-B Preparing Singularity Gate activation... Stable singularity established. >>Gate Test 138-C Initiating Test 138-C... Warning: Experimental formulas incomplete. Potential effects include instability. Repeat command to confirm test. >>Gate Test 138-C Initiating Test 138-C... Applying incomplete calculations.... INSTABILITY DETECTED, CASCADE IMMINENT. Map ----- +----------------------------------------------------+ | ???????????????## #????########=!#####???"!! | | ????????????????### #???????????#%]#???????""" | | ??????????????????# #???????????#!!##????????? | | ??????????????????# #??????????##!!!##???????? | | ??????????????????# #??????##?##!*! #???????? | | ??????????????????# #?????## ## ##??????? | | ??????????????????# #????## ##?????? | | ??????????????????# #???## #?????? | | ??????????????????# #?### ## ##?????? | | ??????????????????# ### ## #??????? | | ??????????????????# ## ##??????? | | ??????????????????# ## ###???????? | | ?????????????###### ###### ##?????????? | | ?????????????#""""" """""#### ##??????????? | | ??????????????#"""" """"#??## ##???????????? | | ?????????????##" "#### ##????????????? | | ?????????????#"" ""## #####?????????? | | ?????????????#"" ""# ## #?????????? | | ?????????????##" "## ##????????? | | ??????????????#" "## #????????? | | ??????????????#" "### ###????????? | | ??????????????#" "#?### #####??????? | | ?????????????##" "##??# ## #??????? | | ?????????????#"" ""#??# #??????? | | ?????????????#"" ""#??# #??????? | | ?????????????##" @ "##??## #??????? | | ??????????????#"""" A""#????## #??????? | | ?????????????#""""" """""#???## #??????? | | ?????????????###### #######??# ##?????? | | ??????????????????# # #??## ### #?????? | | ??????????????????# ##??###### #?????? | | ??????????????????# # ##???## #?????? | | ??????????????????# # ##### #?????? | | ??????????????????# #?????? | | ??????????????????# ##?????? | | ??????????????????# #??????? | | ??????????????##??# ## ##?????? | | ??????????????# ### #### ## #?????? | | ??????????????# ##?# ## ###?????? | | ??????????????# ##??## ## ### #???????? | | ??????????????## ## #????######?# #???????? | | ???????????????### ?# ##??????????# ##???????? | | ????????????????## ## ##???????????## #????????? | | ???????????????## ##?????????????## ????????? | | ???????????????# #???????????????# ???????? | | ???????????????# #???????????????## ##??????? | | ???????????????## #????????????????####???????? | | ????????????????# # #?????????????##????????????? | | ????????????????### ######???????## ????????????? | | ??????????????????# #???????# ##??????????? | +----------------------------------------------------+ Best States ------------- Heat Dissipation 92 Energy Generation 105 Energy Capacity 950 Matter Stores 425 Matter Capacity 425 Sight Range 16 Robot Scan Range 30 Terrain Scan Range 16 Terrain Scan Density 60 Jamming Range 16 Cloak Strength 4 Armor Coverage 1725 Resistance: KI 30 Resistance: TH 75 Resistance: EX 30 Resistance: EM 30 Resistance: I 30 Resistance: S 30 Resistance: P 30 Propulsion Shielding 66 Utility Shielding 66 Weapon Shielding 100 Weapon Cycling 30 Melee Speed Boost 50 Phase Shifting 20 Evasion (%) 77 Melee Accuracy 12 Target Analysis 12 Core Analysis 8 Armor Integrity Analysis 66 Recoil Reduction 4 Force Boost 5 Offensive Hacking 25 Defensive Hacking 25 Item Schematics ----------------- Com. Wheel | -2/Quarantine | Z-intel Microactuators | -2/Quarantine | Z-intel Adv. ECM Suite | -2/Quarantine | Z-intel System Shield | -2/Quarantine | Z-intel Imp. Light Armor Plating | -2/Quarantine | Z-intel Phase Gun | -2/Quarantine | Z-intel Adv. Coolant Injector | -2/Quarantine | Z-intel Tesla Rifle | -2/Quarantine | Z-intel Adv. Field Recycling Unit | -2/Quarantine | Z-intel Antigrav Array | -2/Quarantine | Z-intel Lrn. Tractor Beam | -2/Quarantine | Z-intel Imp. Melee Analysis Suite | -2/Quarantine | Z-intel Nanoactuators | -2/Quarantine | Z-intel Imp. Focal Shield | -2/Quarantine | Z-intel Exp. Energy Well | -2/Quarantine | Z-intel Adv. Power Amplifier | -2/Quarantine | Z-intel Helical Railgun | -2/Quarantine | Z-intel Quantum Shading Machine | -2/Quarantine | Z-intel Particle Accelerator | -2/Quarantine | Z-intel Dimensional Manipulator | -2/Quarantine | Z-intel Mni. Smartbomb Launcher | -2/Quarantine | Z-intel Exp. Optical Array | -2/Quarantine | Z-intel Exp. Thermal Converter | -2/Quarantine | Z-intel Imp. Antigrav System | -2/Section 7 | Z-intel Adv. Trap Extractor | -2/Section 7 | Z-intel Adv. Weight Redist. System | -2/Section 7 | Z-intel Imp. Cloaking Device | -2/Section 7 | Z-intel Cmb. Gravmag System | -2/Section 7 | Z-intel Imp. Stasis Canceller | -2/Section 7 | Z-intel Dynamic Insulation System | -2/Section 7 | Z-intel Imp. System Shield | -2/Section 7 | Z-intel Imp. Weapon Shielding | -2/Section 7 | Z-intel Energy Filter | -2/Section 7 | Z-intel Imp. Shock Absorption System | -2/Section 7 | Z-intel Lrg. Storage Unit | -2/Section 7 | Z-intel Adv. Core Analyzer | -2/Section 7 | Z-intel Imp. Plasma Cutter | -2/Section 7 | Z-intel Adv. Melee Analysis Suite | -1/Command | Z-intel Field Propulsion Array | -1/Command | Z-intel Lrn. Sensor Array | -1/Command | Z-intel Cloaking Device | -1/Command | Z-intel Stasis Beam | -1/Command | Z-intel Drone Bay | -1/Command | Z-intel Imp. Maneuvering Thrusters | -1/Command | Z-intel Imp. Launcher Guidance Computer | -1/Command | Z-intel Power Amplifier | -1/Command | Z-intel Remote Shield | -1/Command | Z-intel System Guard | -1/Command | Z-intel Triangulator | -1/Command | Z-intel Centrium Leg | -1/Command | Z-intel Recoil Nullifier | -1/Command | Z-intel Exp. ECM Suite | -1/Command | Z-intel Exp. Reclamation Unit | -1/Command | Z-intel Hvy. Tesla Rifle | -1/Command | Z-intel Imp. Diametric Drive | -1/Command | Z-intel Imp. Quantum Reactor | -1/Command | Z-intel Exp. Weapon Cycler | -1/Command | Z-intel Cld. Plasma Rifle | -1/Command | Z-intel Exp. Biometal Leg | -1/Command | Z-intel Enh. Armored Heavy Treads | -1/Command | Z-intel Cld. Gravmag System | -1/Command | Z-intel Hvy. Dispersion Rifle | -1/Command | Z-intel Cld. Phase Gun | -1/Command | Z-intel Robot Schematics ------------------ G-67 Veteran | -2/Quarantine | Z-intel G-73 Enforcer | -2/Quarantine | Z-intel T-07 Excavator | -2/Quarantine | Z-intel A-02 Transporter | -2/Quarantine | Z-intel R-10 Processor | -2/Quarantine | Z-intel M-36 Artificer | -2/Quarantine | Z-intel R-06 Scavenger | -2/Quarantine | Z-intel B-74 Champion | -2/Quarantine | Z-intel K-01 Serf | -1/Command | Z-intel S-43 Plague | -1/Command | Z-intel A-15 Conveyor | -1/Command | Z-intel E-15 Imp | -1/Command | Z-intel C-65 Expert | -1/Command | Z-intel H-88 Terminator | -1/Command | Z-intel D-83 Annihilator | -1/Command | Z-intel C-55 Analyst | -1/Command | Z-intel Fabricated ------------ Exp. Cesium-ion Thruster | x1 | -5/Factory Exp. Cesium-ion Thruster | x1 | -5/Factory Cmb. Antigrav System | x2 | -4/Armory | Preloaded P-70 Sage | x2 | -4/Armory Cmb. Antigrav System | x2 | -4/Armory | Preloaded P-70 Sage | x2 | -4/Armory P-70 Sage | x2 | -4/Armory P-70 Sage | x2 | -4/Armory P-70 Sage | x2 | -3/Research B-74 Champion | x3 | -3/Research | Preloaded B-74 Champion | x3 | -3/Research | Preloaded Alien Tech Used ----------------- Integrated Reactor Core Reset Matrix Phase Armor Sigix Broadsword Matter Drive Transdimensional Reconstructor Subatomic Replicator Integrated Singularity Reactor Integrated Dissipator LRC Energy Well LRC Matter Compressor LRC Boosters Core Regenerator Stasis Generator Modified Quantum Sheargun Achievements -------------- None Challenges ------------ None Game ------ Seed TachyonFissionPurifier Manual? 0 Play Time 04:55:18 Cumulative 1607.7 hours Start 2020.09.23 @ 02:08:55 End 2020.09.23 @ 08:49:18 Sessions 5 Manual Loads 0 Difficulty Rogue Special Mode None Game No. 2464 Rogue 2457 Adventurer 0 Explorer 7 Win Type 5 Total 145 Types 40/17/58/3/3/5/17/1/1 Lore% 99 Gallery% 98 Achievement% 100 Wizard Run 0 Options --------- ASCII 0 Keyboard 1 Movement Vi Keybinds 1 Fullscreen 1 Font 18/SmallcapsGlow Map View 76x50 Tactical HUD 1 Map Filters NONE Filters NONE Steam 1 RUN: 02d039b9-40ec-4c87-9521-efe07e0a4ea0